Departmental Family,Entity,Date,Expense Type,Expense Area,Supplier,Transaction Number,Amount,Vat Registration Num
Department of Health,Department of Health,12/05/2011,Other programme expenditure,CHIEF NURSING OFFICER,NORTH EAST SHA,503146,60000,
Department of Health,Department of Health,19/05/2011,Other programme expenditure,CHIEF NURSING OFFICER,SOUTH WEST SHA,6192334,60000,
Department of Health,Department of Health,27/05/2011,Professional fees,COMMISSIONING,CAPITA BUSINESS SERVICES LTD,92063963,91027.2,
Department of Health,Department of Health,26/05/2011,Outsourcing Contract,COMMISSIONING,CARERS FEDERATION LTD,1570,330416.67,
Department of Health,Department of Health,26/05/2011,Outsourcing Contract,COMMISSIONING,CARERS FEDERATION LTD,1571,330416.67,
Department of Health,Department of Health,26/05/2011,Outsourcing Contract,COMMISSIONING,CARERS FEDERATION LTD,1572,330416.67,
Department of Health,Department of Health,27/05/2011,Grants to non-profit institutions (CAP),COMMISSIONING,FUTUREBUILDERS ENGLAND FUND MANAGEMENT LTD,CHAPS27/5/11,87860,
Department of Health,Department of Health,23/05/2011,Grants to non-profit institutions (CAP),COMMISSIONING,FUTUREBUILDERS ENGLAND FUND MANAGEMENT LTD,CHAPS23/5/11,201168.47,
Department of Health,Department of Health,26/05/2011,Outsourcing Contract,COMMISSIONING,LONDON AMBULANCE SERVICE NHS TRUST,50390,28980,
Department of Health,Department of Health,12/05/2011,Outsourcing Contract,COMMISSIONING,MANCHESTER UNIVERSITY OF,15037021,127000,
Department of Health,Department of Health,12/05/2011,Outsourcing Contract,COMMISSIONING,MANCHESTER UNIVERSITY OF,15038442,127000,
Department of Health,Department of Health,27/05/2011,Professional fees,COMMISSIONING,MARKET AND OPINION RESEARCH INTERNATIONAL LTD,11000821,21027.2,
Department of Health,Department of Health,12/05/2011,Other programme expenditure,COMMISSIONING,MONITOR INDEPENDENT REGULATOR OF NHS FOUNDATION TRUSTS,MON138,29462.4,
Department of Health,Department of Health,09/05/2011,Other programme expenditure,COMMISSIONING,MONITOR INDEPENDENT REGULATOR OF NHS FOUNDATION TRUSTS,MON136,31248,
Department of Health,Department of Health,05/05/2011,Other programme expenditure,COMMISSIONING,NHS BUSINESS SERVICES AUTHORITY (NHSBSA),2110,30799.28,
Department of Health,Department of Health,05/05/2011,Other programme expenditure,COMMISSIONING,NHS BUSINESS SERVICES AUTHORITY (NHSBSA),2109,342536,
Department of Health,Department of Health,23/05/2011,Outsourcing Contract,COMMISSIONING,POHWER,SINV497,354709,
Department of Health,Department of Health,23/05/2011,Outsourcing Contract,COMMISSIONING,POHWER,SINV498,354709,
Department of Health,Department of Health,09/05/2011,Publicity & advertising,COMMUNICATIONS,CENTRAL OFFICE OF INFORMATION (COI),734394,22250,
Department of Health,Department of Health,09/05/2011,Publicity & advertising,COMMUNICATIONS,CENTRAL OFFICE OF INFORMATION (COI),734415,40000,
Department of Health,Department of Health,16/05/2011,Publicity & advertising,COMMUNICATIONS,CENTRAL OFFICE OF INFORMATION (COI),734446,150004.82,
Department of Health,Department of Health,11/05/2011,Printing,COMMUNICATIONS,PROMOTIONAL LOGISTICS LTD,OP/I117129,27421.53,
Department of Health,Department of Health,11/05/2011,Printing,COMMUNICATIONS,PROMOTIONAL LOGISTICS LTD,OP/I117128,110442.32,
Department of Health,Department of Health,09/05/2011,Security: contract,FINANCE & OPERATIONS (DM),CABINET OFFICE,250002956,40000,
Department of Health,Department of Health,24/05/2011,Addition Clearing - OLB,FINANCE & OPERATIONS (DM),CSC COMPUTER SCIENCES LTD,5201238000,63460.3,
Department of Health,Department of Health,13/05/2011,IT minor costs non capital,FINANCE & OPERATIONS (DM),CSC COMPUTER SCIENCES LTD,5201236371,34171.96,
Department of Health,Department of Health,04/05/2011,IT minor costs non capital,FINANCE & OPERATIONS (DM),CSC COMPUTER SCIENCES LTD,5201235542,43318.28,
Department of Health,Department of Health,24/05/2011,Outsourcing Contract,FINANCE & OPERATIONS (DM),CSC COMPUTER SCIENCES LTD,5201237999,22850.59,
Department of Health,Department of Health,17/05/2011,Service charge,FINANCE & OPERATIONS (DM),DEPARTMENT FOR WORK AND PENSIONS (DWP),2882378,17454.83,
Department of Health,Department of Health,17/05/2011,Utilities,FINANCE & OPERATIONS (DM),DEPARTMENT FOR WORK AND PENSIONS (DWP),2882378,24664.91,
Department of Health,Department of Health,24/05/2011,Addition Clearing - F&F,FINANCE & OPERATIONS (DM),EMCOR FACILITIES SERVICES LTD,00194844RI,78000,
Department of Health,Department of Health,24/05/2011,Addition Clearing - OLB,FINANCE & OPERATIONS (DM),EMCOR FACILITIES SERVICES LTD,00194850RI,45549.32,
Department of Health,Department of Health,25/05/2011,Addition Clearing - OLB,FINANCE & OPERATIONS (DM),EMCOR FACILITIES SERVICES LTD,00194854RI,52439.34,
Department of Health,Department of Health,25/05/2011,Addition Clearing - OLB,FINANCE & OPERATIONS (DM),EMCOR FACILITIES SERVICES LTD,00194852RI,59455.41,
Department of Health,Department of Health,24/05/2011,Addition Clearing - OLB,FINANCE & OPERATIONS (DM),EMCOR FACILITIES SERVICES LTD,00194846RI,84452.46,
Department of Health,Department of Health,24/05/2011,Addition Clearing - OLB,FINANCE & OPERATIONS (DM),EMCOR FACILITIES SERVICES LTD,00194845RI,103808.74,
Department of Health,Department of Health,24/05/2011,Addition Clearing - OLB,FINANCE & OPERATIONS (DM),EMCOR FACILITIES SERVICES LTD,00194848RI,445905.63,
Department of Health,Department of Health,05/05/2011,Building repairs & maintenance,FINANCE & OPERATIONS (DM),EMCOR FACILITIES SERVICES LTD,00193592RI,2520.24,
Department of Health,Department of Health,25/05/2011,Building repairs & maintenance,FINANCE & OPERATIONS (DM),EMCOR FACILITIES SERVICES LTD,00196123RI,2520.24,
Department of Health,Department of Health,05/05/2011,Building repairs & maintenance,FINANCE & OPERATIONS (DM),EMCOR FACILITIES SERVICES LTD,00193592RI,2543.68,
Department of Health,Department of Health,25/05/2011,Building repairs & maintenance,FINANCE & OPERATIONS (DM),EMCOR FACILITIES SERVICES LTD,00196123RI,2543.68,
Department of Health,Department of Health,25/05/2011,Building repairs & maintenance,FINANCE & OPERATIONS (DM),EMCOR FACILITIES SERVICES LTD,00195965aRI,20982.2,
Department of Health,Department of Health,05/05/2011,Building repairs & maintenance,FINANCE & OPERATIONS (DM),EMCOR FACILITIES SERVICES LTD,00193592RI,23201.81,
Department of Health,Department of Health,25/05/2011,Building repairs & maintenance,FINANCE & OPERATIONS (DM),EMCOR FACILITIES SERVICES LTD,00196123RI,23201.81,
Department of Health,Department of Health,05/05/2011,Building repairs & maintenance,FINANCE & OPERATIONS (DM),EMCOR FACILITIES SERVICES LTD,00193592RI,29484.45,
Department of Health,Department of Health,25/05/2011,Building repairs & maintenance,FINANCE & OPERATIONS (DM),EMCOR FACILITIES SERVICES LTD,00196123RI,29484.45,
Department of Health,Department of Health,05/05/2011,Building repairs & maintenance,FINANCE & OPERATIONS (DM),EMCOR FACILITIES SERVICES LTD,00193592RI,31388.28,
Department of Health,Department of Health,25/05/2011,Building repairs & maintenance,FINANCE & OPERATIONS (DM),EMCOR FACILITIES SERVICES LTD,00196123RI,31388.28,
Department of Health,Department of Health,05/05/2011,Building repairs & maintenance,FINANCE & OPERATIONS (DM),EMCOR FACILITIES SERVICES LTD,00193592RI,32333.83,
Department of Health,Department of Health,25/05/2011,Building repairs & maintenance,FINANCE & OPERATIONS (DM),EMCOR FACILITIES SERVICES LTD,00196123RI,32333.83,
Department of Health,Department of Health,25/05/2011,Cleaning: contract,FINANCE & OPERATIONS (DM),EMCOR FACILITIES SERVICES LTD,00195965aRI,1100,
Department of Health,Department of Health,05/05/2011,Cleaning: contract,FINANCE & OPERATIONS (DM),EMCOR FACILITIES SERVICES LTD,00193592RI,1617.63,
Department of Health,Department of Health,25/05/2011,Cleaning: contract,FINANCE & OPERATIONS (DM),EMCOR FACILITIES SERVICES LTD,00196123RI,1617.63,
Department of Health,Department of Health,05/05/2011,Cleaning: contract,FINANCE & OPERATIONS (DM),EMCOR FACILITIES SERVICES LTD,00193592RI,1703.56,
Department of Health,Department of Health,25/05/2011,Cleaning: contract,FINANCE & OPERATIONS (DM),EMCOR FACILITIES SERVICES LTD,00196123RI,1703.56,
Department of Health,Department of Health,05/05/2011,Cleaning: contract,FINANCE & OPERATIONS (DM),EMCOR FACILITIES SERVICES LTD,00193592RI,11653.11,
Department of Health,Department of Health,25/05/2011,Cleaning: contract,FINANCE & OPERATIONS (DM),EMCOR FACILITIES SERVICES LTD,00196123RI,11653.11,
Department of Health,Department of Health,05/05/2011,Cleaning: contract,FINANCE & OPERATIONS (DM),EMCOR FACILITIES SERVICES LTD,00193592RI,16873.97,
Department of Health,Department of Health,25/05/2011,Cleaning: contract,FINANCE & OPERATIONS (DM),EMCOR FACILITIES SERVICES LTD,00196123RI,16873.97,
Department of Health,Department of Health,05/05/2011,Cleaning: contract,FINANCE & OPERATIONS (DM),EMCOR FACILITIES SERVICES LTD,00193592RI,24705.75,
Department of Health,Department of Health,25/05/2011,Cleaning: contract,FINANCE & OPERATIONS (DM),EMCOR FACILITIES SERVICES LTD,00196123RI,24705.75,
Department of Health,Department of Health,05/05/2011,Facilities management: contract,FINANCE & OPERATIONS (DM),EMCOR FACILITIES SERVICES LTD,00193592RI,1835.34,
Department of Health,Department of Health,25/05/2011,Facilities management: contract,FINANCE & OPERATIONS (DM),EMCOR FACILITIES SERVICES LTD,00196123RI,1835.34,
Department of Health,Department of Health,05/05/2011,Facilities management: contract,FINANCE & OPERATIONS (DM),EMCOR FACILITIES SERVICES LTD,00193592RI,3524.46,
Department of Health,Department of Health,25/05/2011,Facilities management: contract,FINANCE & OPERATIONS (DM),EMCOR FACILITIES SERVICES LTD,00196123RI,3524.46,
Department of Health,Department of Health,05/05/2011,Facilities management: contract,FINANCE & OPERATIONS (DM),EMCOR FACILITIES SERVICES LTD,00193592RI,6670.52,
Department of Health,Department of Health,25/05/2011,Facilities management: contract,FINANCE & OPERATIONS (DM),EMCOR FACILITIES SERVICES LTD,00196123RI,6670.52,
Department of Health,Department of Health,05/05/2011,Facilities management: contract,FINANCE & OPERATIONS (DM),EMCOR FACILITIES SERVICES LTD,00193592RI,7099.81,
Department of Health,Department of Health,25/05/2011,Facilities management: contract,FINANCE & OPERATIONS (DM),EMCOR FACILITIES SERVICES LTD,00196123RI,7099.81,
Department of Health,Department of Health,05/05/2011,Facilities management: contract,FINANCE & OPERATIONS (DM),EMCOR FACILITIES SERVICES LTD,00193592RI,13560.96,
Department of Health,Department of Health,25/05/2011,Facilities management: contract,FINANCE & OPERATIONS (DM),EMCOR FACILITIES SERVICES LTD,00196123RI,13560.96,
Department of Health,Department of Health,25/05/2011,Porterage & removals,FINANCE & OPERATIONS (DM),EMCOR FACILITIES SERVICES LTD,00195965aRI,19925.16,
Department of Health,Department of Health,05/05/2011,Security: contract,FINANCE & OPERATIONS (DM),EMCOR FACILITIES SERVICES LTD,00193592RI,7661,
Department of Health,Department of Health,25/05/2011,Security: contract,FINANCE & OPERATIONS (DM),EMCOR FACILITIES SERVICES LTD,00196123RI,7661,
Department of Health,Department of Health,25/05/2011,Security: contract,FINANCE & OPERATIONS (DM),EMCOR FACILITIES SERVICES LTD,00195965aRI,11244.28,
Department of Health,Department of Health,05/05/2011,Security: contract,FINANCE & OPERATIONS (DM),EMCOR FACILITIES SERVICES LTD,00193592RI,16479.08,
Department of Health,Department of Health,25/05/2011,Security: contract,FINANCE & OPERATIONS (DM),EMCOR FACILITIES SERVICES LTD,00196123RI,16479.08,
Department of Health,Department of Health,05/05/2011,Security: contract,FINANCE & OPERATIONS (DM),EMCOR FACILITIES SERVICES LTD,00193592RI,16961.89,
Department of Health,Department of Health,25/05/2011,Security: contract,FINANCE & OPERATIONS (DM),EMCOR FACILITIES SERVICES LTD,00196123RI,16961.89,
Department of Health,Department of Health,05/05/2011,Security: contract,FINANCE & OPERATIONS (DM),EMCOR FACILITIES SERVICES LTD,00193592RI,39180.93,
Department of Health,Department of Health,25/05/2011,Security: contract,FINANCE & OPERATIONS (DM),EMCOR FACILITIES SERVICES LTD,00196123RI,39180.93,
Department of Health,Department of Health,26/05/2011,Conferences & seminars,FINANCE & OPERATIONS (DM),FCM TRAVEL SOLUTIONS,1049603912,66232.1,
Department of Health,Department of Health,26/05/2011,Conferences & seminars,FINANCE & OPERATIONS (DM),FCM TRAVEL SOLUTIONS,1049603993,73771.19,
Department of Health,Department of Health,26/05/2011,Conferences & seminars,FINANCE & OPERATIONS (DM),FCM TRAVEL SOLUTIONS,1049603797,74822.82,
Department of Health,Department of Health,20/05/2011,Professional fees,FINANCE & OPERATIONS (DM),FCM TRAVEL SOLUTIONS,1049604078,25922.2,
Department of Health,Department of Health,20/05/2011,Travel & subsistence staff,FINANCE & OPERATIONS (DM),FCM TRAVEL SOLUTIONS,1049604078,22953.74,
Department of Health,Department of Health,20/05/2011,Travel & subsistence staff,FINANCE & OPERATIONS (DM),FCM TRAVEL SOLUTIONS,1049603893,85574.28,
Department of Health,Department of Health,17/05/2011,Rent of Land & Buildings (non-PFI operating lease),FINANCE & OPERATIONS (DM),MEDICINES AND HEALTHCARE PRODUCTS REGULATORY AGENCY (MHRA),1336995,32219,
Department of Health,Department of Health,04/05/2011,CIP Addition Clearing - OLB,FINANCE & OPERATIONS (DM),OFFICE PROJECTS LTD,9002,141298.44,
Department of Health,Department of Health,13/05/2011,IT minor costs non capital,FINANCE & OPERATIONS (DM),ORACLE CORPORATION UK LTD,1328274,138931.16,
Department of Health,Department of Health,10/05/2011,Professional fees,FINANCE & OPERATIONS (DM),PRICEWATERHOUSECOOPERS LLP,1353578386,209856,
Department of Health,Department of Health,06/05/2011,Other rentals under operating leases (non-PFI),FINANCE & OPERATIONS (DM),RICOH UK LTD,55787466,61278.58,
Department of Health,Department of Health,11/05/2011,Utilities,FINANCE & OPERATIONS (DM),SCOTTISH AND SOUTHERN ENERGY PLC,191304511/0048,35042.77,
Department of Health,Department of Health,12/05/2011,Utilities,FINANCE & OPERATIONS (DM),SCOTTISH AND SOUTHERN ENERGY PLC,191304511,35982.18,
Department of Health,Department of Health,17/05/2011,Addition Clearing - F&F,FINANCE & OPERATIONS (DM),SIGNWISE LTD,21930,29736,
Department of Health,Department of Health,16/05/2011,Outsourcing Contract,FINANCE & OPERATIONS (DM),STERIA LTD,100019048,62989.69,
Department of Health,Department of Health,05/05/2011,Outsourcing Contract,FINANCE & OPERATIONS (DM),STERIA LTD,100018092,69455.77,
Department of Health,Department of Health,05/05/2011,Outsourcing Contract,FINANCE & OPERATIONS (DM),STERIA LTD,100017876,155305.44,
Department of Health,Department of Health,10/05/2011,Printing,FINANCE & OPERATIONS (DM),XEROX BUSINESS SERVICES,900077804,3633.83,
Department of Health,Department of Health,10/05/2011,Printing,FINANCE & OPERATIONS (DM),XEROX BUSINESS SERVICES,900077804,11763.48,
Department of Health,Department of Health,10/05/2011,Printing,FINANCE & OPERATIONS (DM),XEROX BUSINESS SERVICES,900077804,20953.1,
Department of Health,Department of Health,11/05/2011,Printing,FINANCE & OPERATIONS (DM),XEROX FINANCE LTD,900077044,43620.49,
Department of Health,Department of Health,09/05/2011,Outsourcing Contract,HEALTH PROTECTION AND IMPROVEMENT,AFRICAN HIV POLICY NETWORK,AHPN01-2011Q1,250000,
Department of Health,Department of Health,09/05/2011,Other programme expenditure,HEALTH PROTECTION AND IMPROVEMENT,BIO PRODUCTS LABORATORY (BPL),1248816,180096,
Department of Health,Department of Health,25/05/2011,Addition Clearing - SW LIC,HEALTH PROTECTION AND IMPROVEMENT,BRITISH STANDARDS INSTITUTION,93403568-2000,90147.6,
Department of Health,Department of Health,17/05/2011,Programme Revenue Grant in Aid to ENDPBs,HEALTH PROTECTION AND IMPROVEMENT,DEFENCE BILLS AGENCY (DBA),7201442,467118.3,
Department of Health,Department of Health,24/05/2011,Outsourcing Contract,HEALTH PROTECTION AND IMPROVEMENT,DEPARTMENT FOR WORK AND PENSIONS (DWP),2878873,52812.33,
Department of Health,Department of Health,25/05/2011,Outsourcing Contract,HEALTH PROTECTION AND IMPROVEMENT,EXEL EUROPE LTD,6251044,300000,
Department of Health,Department of Health,09/05/2011,Research & development,HEALTH PROTECTION AND IMPROVEMENT,FAMILY PLANNING ASSOCIATION,569700,344000,
Department of Health,Department of Health,27/05/2011,Outsourcing Contract,HEALTH PROTECTION AND IMPROVEMENT,HEALTH AND SOCIAL CARE INFORMATION CENTRE,12592319,25510,
Department of Health,Department of Health,19/05/2011,Programme Revenue Grant in Aid to ENDPBs,HEALTH PROTECTION AND IMPROVEMENT,HEALTH PROTECTION AGENCY (HPA),MAY DRAWDOWN,13000000,
Department of Health,Department of Health,04/05/2011,Professional fees,HEALTH PROTECTION AND IMPROVEMENT,MULTI RESOURCE MARKETING LTD,121442,96065.75,
Department of Health,Department of Health,16/05/2011,Outsourcing Contract,HEALTH PROTECTION AND IMPROVEMENT,NHS BUSINESS SERVICES AUTHORITY (NHSBSA),2145,56560,
Department of Health,Department of Health,13/05/2011,Outsourcing Contract,HEALTH PROTECTION AND IMPROVEMENT,NHS BUSINESS SERVICES AUTHORITY (NHSBSA),2147,63162,
Department of Health,Department of Health,13/05/2011,Outsourcing Contract,HEALTH PROTECTION AND IMPROVEMENT,NHS BUSINESS SERVICES AUTHORITY (NHSBSA),2146,66512,
Department of Health,Department of Health,06/05/2011,Outsourcing Contract,HEALTH PROTECTION AND IMPROVEMENT,NHS SUPPLY CHAIN,9042000002,1967253.96,
Department of Health,Department of Health,06/05/2011,Outsourcing Contract,HEALTH PROTECTION AND IMPROVEMENT,NHS SUPPLY CHAIN,9042000001,3945740,
Department of Health,Department of Health,25/05/2011,Outsourcing Contract,HEALTH PROTECTION AND IMPROVEMENT,NHS SUPPLY CHAIN,9042000003,4354507.91,
Department of Health,Department of Health,05/05/2011,Outsourcing Contract,HEALTH PROTECTION AND IMPROVEMENT,OECD,110427/ELS/2011/2220,125000,
Department of Health,Department of Health,19/05/2011,Other programme expenditure,HEALTH PROTECTION AND IMPROVEMENT,PGO FOREIGN CURRENCY PAYMENTS,FT/11138/00228,2465450,
Department of Health,Department of Health,27/05/2011,Provisions cash payment,HEALTH PROTECTION AND IMPROVEMENT,PGO FOREIGN CURRENCY PAYMENTS,1042511470DY33IA,343477.3,
Department of Health,Department of Health,11/05/2011,Contactor/ Staff Subsitution,HEALTH PROTECTION AND IMPROVEMENT,SAPIENT LTD,21541,6366,
Department of Health,Department of Health,09/05/2011,Contactor/ Staff Subsitution,HEALTH PROTECTION AND IMPROVEMENT,SAPIENT LTD,21126,32334,
Department of Health,Department of Health,11/05/2011,Outsourcing Contract,HEALTH PROTECTION AND IMPROVEMENT,SAPIENT LTD,21541,20010,
Department of Health,Department of Health,24/05/2011,Outsourcing Contract,HEALTH PROTECTION AND IMPROVEMENT,SAPIENT LTD,21543,99228,
Department of Health,Department of Health,04/05/2011,Minor office equipment purchases non capital,HEALTH PROTECTION AND IMPROVEMENT,SOUTH CENTRAL AMBULANCE SERVICE NHS TRUST,INV00000000019591,23282.54,
Department of Health,Department of Health,04/05/2011,Training non pay costs,HEALTH PROTECTION AND IMPROVEMENT,SOUTH CENTRAL AMBULANCE SERVICE NHS TRUST,INV00000000019591,6756.25,
Department of Health,Department of Health,17/05/2011,Other programme expenditure,HEALTH PROTECTION AND IMPROVEMENT,THE TERRENCE HIGGINS TRUST,STAT003536,585000,
Department of Health,Department of Health,09/05/2011,Outsourcing Contract,HEALTH PROTECTION AND IMPROVEMENT,VERTEX DATA SCIENCE LTD,FI0407393,64375.63,
Department of Health,Department of Health,09/05/2011,Outsourcing Contract,HEALTH PROTECTION AND IMPROVEMENT,VERTEX DATA SCIENCE LTD,FI0407391,123724.69,
Department of Health,Department of Health,26/05/2011,Addition Clearing - IT,INFORMATICS,BT GROUP PLC,267856,490000,
Department of Health,Department of Health,26/05/2011,Addition Clearing - IT,INFORMATICS,BT GROUP PLC,267744,500000,
Department of Health,Department of Health,26/05/2011,Addition Clearing - IT,INFORMATICS,BT GROUP PLC,267127,6227557.7,
Department of Health,Department of Health,26/05/2011,Service charge,INFORMATICS,BT GROUP PLC,266381,23788.1,
Department of Health,Department of Health,17/05/2011,Service charge,INFORMATICS,BT GROUP PLC,266396PART PAYT,34365.6,
Department of Health,Department of Health,04/05/2011,Service charge,INFORMATICS,BT GROUP PLC,265615,38607.24,
Department of Health,Department of Health,26/05/2011,Service charge,INFORMATICS,BT GROUP PLC,266380,47981.22,
Department of Health,Department of Health,17/05/2011,Service charge,INFORMATICS,BT GROUP PLC,266398,53959.14,
Department of Health,Department of Health,17/05/2011,Service charge,INFORMATICS,BT GROUP PLC,CHAPS17/5/11,90053.54,
Department of Health,Department of Health,04/05/2011,Service charge,INFORMATICS,BT GROUP PLC,265519,107508.44,
Department of Health,Department of Health,17/05/2011,Service charge,INFORMATICS,BT GROUP PLC,266395,109536.12,
Department of Health,Department of Health,26/05/2011,Service charge,INFORMATICS,BT GROUP PLC,266370PART PAYT,118061.93,
Department of Health,Department of Health,17/05/2011,Service charge,INFORMATICS,BT GROUP PLC,266397,139409.64,
Department of Health,Department of Health,26/05/2011,Service charge,INFORMATICS,BT GROUP PLC,266376,155658,
Department of Health,Department of Health,26/05/2011,Service charge,INFORMATICS,BT GROUP PLC,CHAPS26/5/11,241415.81,
Department of Health,Department of Health,26/05/2011,Service charge,INFORMATICS,BT GROUP PLC,267673,482526.38,
Department of Health,Department of Health,26/05/2011,Service charge,INFORMATICS,BT GROUP PLC,266374PART PAYT,1456928.99,
Department of Health,Department of Health,17/05/2011,Service charge,INFORMATICS,BT GROUP PLC,266389PART PAYT,2091873.75,
Department of Health,Department of Health,17/05/2011,Service charge,INFORMATICS,BT GROUP PLC,267239,3230013.12,
Department of Health,Department of Health,26/05/2011,Service charge,INFORMATICS,BT GROUP PLC,266368PART PAYT,3271579.35,
Department of Health,Department of Health,24/05/2011,Addition Clearing - IT,INFORMATICS,CSC COMPUTER SCIENCES LTD,5201236358,24946.96,
Department of Health,Department of Health,16/05/2011,IT minor costs non capital,INFORMATICS,CSC COMPUTER SCIENCES LTD,5201223977,21266.55,
Department of Health,Department of Health,16/05/2011,IT minor costs non capital,INFORMATICS,CSC COMPUTER SCIENCES LTD,5201231361,21668.9,
Department of Health,Department of Health,24/05/2011,Service charge,INFORMATICS,CSC COMPUTER SCIENCES LTD,5201236358,7087.6,
Department of Health,Department of Health,16/05/2011,Service charge,INFORMATICS,CSC COMPUTER SCIENCES LTD,5201228034,26097.67,
Department of Health,Department of Health,13/05/2011,IT minor costs non capital,INFORMATICS,HEALTH AND SOCIAL CARE INFORMATION CENTRE,12592281,722958,
Department of Health,Department of Health,09/05/2011,Service charge,INFORMATICS,THE ACCENTURE GROUP,3003146148,22650,
Department of Health,Department of Health,16/05/2011,Service charge,INFORMATICS,THE ACCENTURE GROUP,3003151288,31819.04,
Department of Health,Department of Health,25/05/2011,Service charge,INFORMATICS,THE ACCENTURE GROUP,3003151404,1029908.82,
Department of Health,Department of Health,25/05/2011,Service charge,INFORMATICS,THE ACCENTURE GROUP,3003151405,1218976.23,
Department of Health,Department of Health,07/05/2011,Expense clearing GPC (ST),More than one directorate,BARCLAYCARD BUSINESS,2008001-18-MAY-11,835.93,
Department of Health,Department of Health,13/05/2011,Expense clearing GPC (ST),More than one directorate,BARCLAYCARD BUSINESS,2008001-18-MAY-11,3600.64,
Department of Health,Department of Health,11/05/2011,Expense clearing GPC (ST),More than one directorate,BARCLAYCARD BUSINESS,2008001-18-MAY-11,4869.16,
Department of Health,Department of Health,10/05/2011,Expense clearing GPC (ST),More than one directorate,BARCLAYCARD BUSINESS,2008001-18-MAY-11,5534.71,
Department of Health,Department of Health,16/05/2011,Expense clearing GPC (ST),More than one directorate,BARCLAYCARD BUSINESS,2008001-18-MAY-11,5711.97,
Department of Health,Department of Health,09/05/2011,Expense clearing GPC (ST),More than one directorate,BARCLAYCARD BUSINESS,2008001-18-MAY-11,7443.8,
Department of Health,Department of Health,03/05/2011,Expense clearing GPC (ST),More than one directorate,BARCLAYCARD BUSINESS,2008001-18-MAY-11,7548.93,
Department of Health,Department of Health,06/05/2011,Expense clearing GPC (ST),More than one directorate,BARCLAYCARD BUSINESS,2008001-18-MAY-11,9231.49,
Department of Health,Department of Health,04/05/2011,Expense clearing GPC (ST),More than one directorate,BARCLAYCARD BUSINESS,2008001-18-MAY-11,10206.52,
Department of Health,Department of Health,12/05/2011,Expense clearing GPC (ST),More than one directorate,BARCLAYCARD BUSINESS,2008001-18-MAY-11,10603.74,
Department of Health,Department of Health,05/05/2011,Expense clearing GPC (ST),More than one directorate,BARCLAYCARD BUSINESS,2008001-18-MAY-11,11065.56,
Department of Health,Department of Health,01/05/2011,Expense clearing GPC (ST),More than one directorate,BARCLAYCARD BUSINESS,2008001-18-MAY-11,51407.32,
Department of Health,Department of Health,05/05/2011,Addition Clearing - IT,NHS FINANCE PERFORMANCE & OPERATIONS,AIRWAVE SOLUTIONS INTERNATIONAL LTD,0900000137-130,3000000,
Department of Health,Department of Health,06/05/2011,Outsourcing Contract,NHS FINANCE PERFORMANCE & OPERATIONS,ALLIANCE MEDICAL LTD,PET0084,902282.51,
Department of Health,Department of Health,10/05/2011,Professional fees,NHS FINANCE PERFORMANCE & OPERATIONS,BEARINGS POINT LTD,4520200107,48602,
Department of Health,Department of Health,06/05/2011,Outsourcing Contract,NHS FINANCE PERFORMANCE & OPERATIONS,CARE UK CLINICAL SERVICES LTD,25754318,2189243.64,
Department of Health,Department of Health,04/05/2011,Other programme expenditure,NHS FINANCE PERFORMANCE & OPERATIONS,CLINICENTA LTD,200-403,3000000,
Department of Health,Department of Health,10/05/2011,Rates,NHS FINANCE PERFORMANCE & OPERATIONS,DEAN CLOUGH LTD,11205,30743,
Department of Health,Department of Health,04/05/2011,Professional fees,NHS FINANCE PERFORMANCE & OPERATIONS,DELOITTE LLP,1110663080,35076,
Department of Health,Department of Health,04/05/2011,Professional fees,NHS FINANCE PERFORMANCE & OPERATIONS,DELOITTE LLP,1110663171,39340,
Department of Health,Department of Health,27/05/2011,Professional fees,NHS FINANCE PERFORMANCE & OPERATIONS,DELOITTE LLP,1110656941,50000,
Department of Health,Department of Health,27/05/2011,Professional fees,NHS FINANCE PERFORMANCE & OPERATIONS,ERNST AND YOUNG LLP,GB10300002209,40353,
Department of Health,Department of Health,06/05/2011,Outsourcing Contract,NHS FINANCE PERFORMANCE & OPERATIONS,FRESENIUS MEDICAL CARE RENAL SERVICES LTD,1060017100,992080.1,
Department of Health,Department of Health,06/05/2011,Other programme expenditure,NHS FINANCE PERFORMANCE & OPERATIONS,INHEALTH LTD,89,312500,
Department of Health,Department of Health,06/05/2011,Outsourcing Contract,NHS FINANCE PERFORMANCE & OPERATIONS,INHEALTH LTD,90,2073535.7,
Department of Health,Department of Health,06/05/2011,Outsourcing Contract,NHS FINANCE PERFORMANCE & OPERATIONS,INHEALTH MOLECULAR IMAGING LTD,SIM000058,931353.08,
Department of Health,Department of Health,04/05/2011,Professional fees,NHS FINANCE PERFORMANCE & OPERATIONS,KPMG LLP,5500359425,29228,
Department of Health,Department of Health,11/05/2011,Admin Revenue Grant-in-Aid ENDPBs,NHS FINANCE PERFORMANCE & OPERATIONS,MONITOR INDEPENDENT REGULATOR OF NHS FOUNDATION TRUSTS,IR OF NHS FUNDING MAY 2011,1000000,
Department of Health,Department of Health,18/05/2011,Admin Revenue Grant-in-Aid ENDPBs,NHS FINANCE PERFORMANCE & OPERATIONS,MONITOR INDEPENDENT REGULATOR OF NHS FOUNDATION TRUSTS,IR OF NHS MAY 2011,1400000,
Department of Health,Department of Health,26/05/2011,Contactor/ Staff Subsitution,NHS FINANCE PERFORMANCE & OPERATIONS,PRICEWATERHOUSECOOPERS LLP,1353538747,-2308.43,
Department of Health,Department of Health,26/05/2011,Contactor/ Staff Subsitution,NHS FINANCE PERFORMANCE & OPERATIONS,PRICEWATERHOUSECOOPERS LLP,1353538747,110804.88,
Department of Health,Department of Health,06/05/2011,Outsourcing Contract,NHS FINANCE PERFORMANCE & OPERATIONS,SPIRE HEALTHCARE LTD,CM090256,610489.22,
Department of Health,Department of Health,06/05/2011,Outsourcing Contract,NHS FINANCE PERFORMANCE & OPERATIONS,SPIRE HEALTHCARE LTD,CM090257,1441796.24,
Department of Health,Department of Health,04/05/2011,Outsourcing Contract,NHS FINANCE PERFORMANCE & OPERATIONS,UKSH SOUTH WEST LTD,UKSHSW/100,2831281.58,
Department of Health,Department of Health,04/05/2011,Outsourcing Contract,NHS FINANCE PERFORMANCE & OPERATIONS,UKSH SOUTH WEST LTD,UKSHSW/98,2831281.58,
Department of Health,Department of Health,12/05/2011,Other programme expenditure,NHS MEDICAL DIRECTOR,EASTERN HEALTH AND SOCIAL SERVICES BOARD (EHSSB),PPRS,192106,
Department of Health,Department of Health,13/05/2011,Outsourcing Contract,NHS MEDICAL DIRECTOR,HEALTH AND SOCIAL CARE INFORMATION CENTRE,12592278,194264,
Department of Health,Department of Health,16/05/2011,Secondees in invoiced costs,NHS MEDICAL DIRECTOR,KINGS COLLEGE LONDON,SINV1035971,38460.57,
Department of Health,Department of Health,16/05/2011,Travel & subsistence secondees,NHS MEDICAL DIRECTOR,KINGS COLLEGE LONDON,SINV1035971,12000,
Department of Health,Department of Health,26/05/2011,Secondees in invoiced costs,NHS MEDICAL DIRECTOR,LEEDS PCT,19877798,63959.29,
Department of Health,Department of Health,11/05/2011,Secondees in invoiced costs,NHS MEDICAL DIRECTOR,NHS BLOOD AND TRANSPLANT (NHSBT),945972,33261,
Department of Health,Department of Health,23/05/2011,Secondees in invoiced costs,NHS MEDICAL DIRECTOR,OXFORD UNIVERSITY,14007168,29977.26,
Department of Health,Department of Health,23/05/2011,Travel & subsistence secondees,NHS MEDICAL DIRECTOR,OXFORD UNIVERSITY,14007168,7800.24,
Department of Health,Department of Health,19/05/2011,Professional fees,NHS MEDICAL DIRECTOR,PLYMOUTH HOSPITALS NHS TRUST,829640,27671,
Department of Health,Department of Health,10/05/2011,Storage costs,NHS MEDICAL DIRECTOR,SANOFI AVENTIS,4700000089,93556.57,
Department of Health,Deparrtment of Health,12/05/2011,Other programme expenditure,NHS MEDICAL DIRECTOR,SCOTTISH EXECUTIVE,50010919,322744,
Department of Health,Department of Health,12/05/2011,Consultancy/Professional Advice,NHS MEDICAL DIRECTOR,SHEFFIELD UNIVERSITY OF,1800061117,41693,
Department of Health,Department of Health,11/05/2011,Outsourcing Contract,NHS MEDICAL DIRECTOR,SHEFFIELD UNIVERSITY OF,1800061493,37702.2,
Department of Health,Department of Health,25/05/2011,Raw materials & consumables,NHS MEDICAL DIRECTOR,SIGMA PHARMACEUTICALS PLC,I193399,170793.38,
Department of Health,Department of Health,13/05/2011,Travel & subsistence secondees,NHS MEDICAL DIRECTOR,THE HILLINGDON HOSPITALS NHS FOUNDATION TRUST,N0073877/DEPAR08,37101.04,
Department of Health,Department of Health,11/05/2011,Grants to non profit institutions (CUR),NHS MEDICAL DIRECTOR,THE NATIONAL COUNCIL FOR PALLIATIVE CARE,ERS-431861-46281,104482,
Department of Health,Department of Health,12/05/2011,Other programme expenditure,NHS MEDICAL DIRECTOR,WELSH ASSEMBLY GOVERNMENT,1800030624,178756,
Department of Health,Department of Health,13/05/2011,Professional fees,POLICY & STRATEGY,EVERSHEDS LLP,90930110,525396.83,
Department of Health,Department of Health,06/05/2011,Professional fees,POLICY & STRATEGY,KNIGHTS SOLICITORS LLP,272437,32758.62,
Department of Health,Department of Health,11/05/2011,Outsourcing Contract,POLICY & STRATEGY,OXFORD UNIVERSITY,RTHP0/20075189,33000,
Department of Health,Department of Health,25/05/2011,Research & development,RESEARCH AND DEVELOPMENT,ABERDEEN UNIVERSITY OF,ERS-432727-46829,4016,
Department of Health,Department of Health,25/05/2011,Research & development,RESEARCH AND DEVELOPMENT,ABERDEEN UNIVERSITY OF,ERS-432727-46829,8458,
Department of Health,Department of Health,25/05/2011,Research & development,RESEARCH AND DEVELOPMENT,ABERDEEN UNIVERSITY OF,ERS-432727-46829,28918,
Department of Health,Department of Health,09/05/2011,Research & development,RESEARCH AND DEVELOPMENT,ABERDEEN UNIVERSITY OF,ERS-431691-46048,32953.22,
Department of Health,Department of Health,25/05/2011,Research & development,RESEARCH AND DEVELOPMENT,ABERDEEN UNIVERSITY OF,ERS-432727-46829,33456,
Department of Health,Department of Health,11/05/2011,Research & development,RESEARCH AND DEVELOPMENT,ABERDEEN UNIVERSITY OF,ERS-431898-46308,444375,
Department of Health,Department of Health,09/05/2011,Research & development,RESEARCH AND DEVELOPMENT,AVON & WILTSHIRE MENTAL HEALTH PARTNERSHIP NHS TRUST,ERS-431700-46047,110328,
Department of Health,Department of Health,25/05/2011,Research & development,RESEARCH AND DEVELOPMENT,BANGOR UNIVERSITY,ERS-432728-46854,14983.3,
Department of Health,Department of Health,25/05/2011,Research & development,RESEARCH AND DEVELOPMENT,BANGOR UNIVERSITY,ERS-432728-46854,20921,
Department of Health,Department of Health,25/05/2011,Research & development,RESEARCH AND DEVELOPMENT,BIRMINGHAM UNIVERSITY OF,ERS-432731-46832,9691,
Department of Health,Department of Health,25/05/2011,Research & development,RESEARCH AND DEVELOPMENT,BIRMINGHAM UNIVERSITY OF,ERS-432731-46832,13546,
Department of Health,Department of Health,25/05/2011,Research & development,RESEARCH AND DEVELOPMENT,BIRMINGHAM UNIVERSITY OF,ERS-432731-46832,14030,
Department of Health,Department of Health,25/05/2011,Research & development,RESEARCH AND DEVELOPMENT,BIRMINGHAM UNIVERSITY OF,ERS-432731-46832,20310,
Department of Health,Department of Health,25/05/2011,Research & development,RESEARCH AND DEVELOPMENT,BIRMINGHAM UNIVERSITY OF,ERS-432731-46832,22262,
Department of Health,Department of Health,09/05/2011,Research & development,RESEARCH AND DEVELOPMENT,BRADFORD TEACHING HOSPITALS NHS FOUNDATION TRUST,ERS-431699-46043,49840,
Department of Health,Department of Health,06/05/2011,Research & development,RESEARCH AND DEVELOPMENT,BRIGHTON & SUSSEX UNIVERSITY HOSPITALS NHS TRUST,ERS-431551-45882,48627,
Department of Health,Department of Health,25/05/2011,Research & development,RESEARCH AND DEVELOPMENT,BRISTOL UNIVERSITY OF,ERS-432732-46833,23501,
Department of Health,Department of Health,25/05/2011,Research & development,RESEARCH AND DEVELOPMENT,BRISTOL UNIVERSITY OF,ERS-432732-46833,37010,
Department of Health,Department of Health,25/05/2011,Research & development,RESEARCH AND DEVELOPMENT,BRISTOL UNIVERSITY OF,ERS-432732-46833,64142,
Department of Health,Department of Health,25/05/2011,Research & development,RESEARCH AND DEVELOPMENT,CAMBRIDGE UNIVERSITY OF,ERS-432734-46834,24612,
Department of Health,Department of Health,25/05/2011,Research & development,RESEARCH AND DEVELOPMENT,CAMBRIDGE UNIVERSITY OF,ERS-432734-46834,35057,
Department of Health,Department of Health,25/05/2011,Research & development,RESEARCH AND DEVELOPMENT,CAMBRIDGE UNIVERSITY OF,ERS-432734-46834,52166,
Department of Health,Department of Health,25/05/2011,Research & development,RESEARCH AND DEVELOPMENT,CARDIFF UNIVERSITY,ERS-432735-46835,5127,
Department of Health,Department of Health,09/05/2011,Research & development,RESEARCH AND DEVELOPMENT,CARDIFF UNIVERSITY,ERS-431698-46050,26521,
Department of Health,Department of Health,25/05/2011,Research & development,RESEARCH AND DEVELOPMENT,CARDIFF UNIVERSITY,ERS-432735-46835,29646,
Department of Health,Department of Health,25/05/2011,Research & development,RESEARCH AND DEVELOPMENT,DUNDEE UNIVERSITY OF,ERS-432736-46836,34308,
Department of Health,Department of Health,26/05/2011,Research & development,RESEARCH AND DEVELOPMENT,DURHAM UNIVERSITY OF,ERS-432886-46892,26563.58,
Department of Health,Department of Health,09/05/2011,Research & development,RESEARCH AND DEVELOPMENT,EAST MIDLANDS SHA,ERS-431695-46041,135527.15,
Department of Health,Department of Health,11/05/2011,Research & development,RESEARCH AND DEVELOPMENT,HEALTH PROTECTION AGENCY (HPA),ERS-431899-46307,2625000,
Department of Health,Department of Health,19/05/2011,Research & development,RESEARCH AND DEVELOPMENT,HOMERTON UNIVERSITY HOSPITAL NHS FOUNDATION TRUST,ERS-432446-46707,83448,
Department of Health,Department of Health,06/05/2011,Research & development,RESEARCH AND DEVELOPMENT,HULL UNIVERSITY OF,ERS-431553-45885,99471,
Department of Health,Department of Health,09/05/2011,Research & development,RESEARCH AND DEVELOPMENT,HUNTLEIGH DIAGNOSTICS PRODUCTS DIVISION,FA11020,25665,
Department of Health,Department of Health,25/05/2011,Research & development,RESEARCH AND DEVELOPMENT,ICNARC VOLUNTARY ORGANISATION,ERS-432739-46839,30663,
Department of Health,Department of Health,25/05/2011,Research & development,RESEARCH AND DEVELOPMENT,IMPERIAL COLLEGE LONDON,ERS-432740-46840,19576,
Department of Health,Department of Health,25/05/2011,Research & development,RESEARCH AND DEVELOPMENT,IMPERIAL COLLEGE LONDON,ERS-432740-46840,30559,
Department of Health,Department of Health,25/05/2011,Research & development,RESEARCH AND DEVELOPMENT,IMPERIAL COLLEGE LONDON,ERS-432740-46840,34795,
Department of Health,Department of Health,25/05/2011,Research & development,RESEARCH AND DEVELOPMENT,KEELE UNIVERSITY OF,ERS-432741-46841,35489.9,
Department of Health,Department of Health,06/05/2011,Research & development,RESEARCH AND DEVELOPMENT,LANCASHIRE CARE NHS FOUNDATION TRUST,ERS-431552-45881,37766,
Department of Health,Department of Health,13/05/2011,Research & development,RESEARCH AND DEVELOPMENT,LEEDS TEACHING HOSPITAL NHS TRUST,ERS-432045-46501,27963,
Department of Health,Department of Health,13/05/2011,Research & development,RESEARCH AND DEVELOPMENT,LEEDS TEACHING HOSPITAL NHS TRUST,ERS-432045-46501,224569,
Department of Health,Department of Health,25/05/2011,Research & development,RESEARCH AND DEVELOPMENT,LEEDS UNIVERSITY OF,ERS-432742-46842,11734,
Department of Health,Department of Health,13/05/2011,Research & development,RESEARCH AND DEVELOPMENT,LEEDS UNIVERSITY OF,ERS-432048-46503,26172,
Department of Health,Department of Health,25/05/2011,Research & development,RESEARCH AND DEVELOPMENT,LEEDS UNIVERSITY OF,ERS-432742-46842,36623,
Department of Health,Department of Health,09/05/2011,Research & development,RESEARCH AND DEVELOPMENT,LEEDS UNIVERSITY OF,ERS-431692-46051,61997.54,
Department of Health,Department of Health,13/05/2011,Research & development,RESEARCH AND DEVELOPMENT,LIVERPOOL UNIVERSITY OF,ERS-432050-46505,25000,
Department of Health,Department of Health,26/05/2011,Research & development,RESEARCH AND DEVELOPMENT,LONDON SCHOOL OF HYGIENE AND TROPICAL MEDICINE,ERS-432874-46894,32606.69,
Department of Health,Department of Health,25/05/2011,Research & development,RESEARCH AND DEVELOPMENT,MEDICAL RESEARCH COUNCIL MRC,ERS-432745-46845,8665,
Department of Health,Department of Health,25/05/2011,Research & development,RESEARCH AND DEVELOPMENT,MEDICAL RESEARCH COUNCIL MRC,ERS-432745-46845,24108,
Department of Health,Department of Health,19/05/2011,Research & development,RESEARCH AND DEVELOPMENT,MOORFIELDS EYE HOSPITAL NHS FOUNDATION TRUST,ERS-432441-46706,171534,
Department of Health,Department of Health,17/05/2011,Research & development,RESEARCH AND DEVELOPMENT,NATIONAL CANCER RESEARCH INSTITUTE (NCRI),ERS-432311-46624,109988.76,
Department of Health,Department of Health,25/05/2011,Research & development,RESEARCH AND DEVELOPMENT,NEWCASTLE UNIVERSITY,ERS-432746-46846,43667,
Department of Health,Department of Health,13/05/2011,Research & development,RESEARCH AND DEVELOPMENT,NHS BLOOD AND TRANSPLANT (NHSBT),ERS-432040-46463,62030,
Department of Health,Department of Health,13/05/2011,Research & development,RESEARCH AND DEVELOPMENT,NHS BLOOD AND TRANSPLANT (NHSBT),ERS-432039-46462,230512.75,
Department of Health,Department of Health,24/05/2011,Research & development,RESEARCH AND DEVELOPMENT,NHS CONFEDERATION,ERS-432665-46763,45000,
Department of Health,Department of Health,13/05/2011,Research & development,RESEARCH AND DEVELOPMENT,NHS DIRECT NHS TRUST,ERS-432041-46461,52803.5,
Department of Health,Department of Health,11/05/2011,Research & development,RESEARCH AND DEVELOPMENT,OFFICE FOR NATIONAL STATISTICS (ONS),ERS-431901-46306,100000,
Department of Health,Department of Health,25/05/2011,Research & development,RESEARCH AND DEVELOPMENT,OXFORD UNIVERSITY,ERS-432750-46848,7924,
Department of Health,Department of Health,25/05/2011,Research & development,RESEARCH AND DEVELOPMENT,OXFORD UNIVERSITY,ERS-432750-46848,13829,
Department of Health,Department of Health,25/05/2011,Research & development,RESEARCH AND DEVELOPMENT,OXFORD UNIVERSITY,ERS-432750-46848,48859,
Department of Health,Department of Health,25/05/2011,Research & development,RESEARCH AND DEVELOPMENT,OXFORD UNIVERSITY,ERS-432750-46848,94073,
Department of Health,Department of Health,13/05/2011,Research & development,RESEARCH AND DEVELOPMENT,PENINSULA COLLEGE OF MEDICINE AND DENTISTRY (PCMD),ERS-432053-46506,25000,
Department of Health,Department of Health,13/05/2011,Research & development,RESEARCH AND DEVELOPMENT,PREPRESS PROJECTS LTD,ERS-432049-46509,61211,
Department of Health,Department of Health,10/05/2011,Research & development,RESEARCH AND DEVELOPMENT,PULSETEQ LTD,1362DOH,39931,
Department of Health,Department of Health,04/05/2011,Research & development,RESEARCH AND DEVELOPMENT,QUANTA FLUID SOLUTIONS,3,71501,
Department of Health,Department of Health,25/05/2011,Research & development,RESEARCH AND DEVELOPMENT,QUEEN MARY AND WESTFIELD COLLEGE,ERS-432752-46849,20976,
Department of Health,Department of Health,25/05/2011,Research & development,RESEARCH AND DEVELOPMENT,QUEEN MARY AND WESTFIELD COLLEGE,ERS-432752-46849,24327,
Department of Health,Department of Health,12/05/2011,Research & development,RESEARCH AND DEVELOPMENT,RAND EUROPE CAMBRIDGE LTD,11166/90115-6,36431,
Department of Health,Department of Health,26/05/2011,Research & development,RESEARCH AND DEVELOPMENT,SANDWELL & WEST BIRMINGHAM HOSPTIALS NHS TRUST,ERS-432871-46890,40748,
Department of Health,Department of Health,26/05/2011,Outsourcing Contract,RESEARCH AND DEVELOPMENT,SAPIENT LTD,21174,33294,
Department of Health,Department of Health,25/05/2011,Research & development,RESEARCH AND DEVELOPMENT,SHEFFIELD UNIVERSITY OF,ERS-432754-46850,23188,
Department of Health,Department of Health,13/05/2011,Research & development,RESEARCH AND DEVELOPMENT,SHEFFIELD UNIVERSITY OF,ERS-432052-46507,25000,
Department of Health,Department of Health,25/05/2011,Research & development,RESEARCH AND DEVELOPMENT,SHEFFIELD UNIVERSITY OF,ERS-432754-46850,26074,
Department of Health,Department of Health,09/05/2011,Research & development,RESEARCH AND DEVELOPMENT,SOUTH CENTRAL SHA,ERS-431696-46042,91874,
Department of Health,Department of Health,13/05/2011,Research & development,RESEARCH AND DEVELOPMENT,SOUTHAMPTON UNIVERSITY OF,ERS-432051-46508,25000,
Department of Health,Department of Health,25/05/2011,Research & development,RESEARCH AND DEVELOPMENT,SUSSEX UNIVERSITY OF,ERS-432756-46852,34632,
Department of Health,Department of Health,25/05/2011,Research & development,RESEARCH AND DEVELOPMENT,SWANSEA UNIVERSITY,ERS-432757-46855,12547,
Department of Health,Department of Health,25/05/2011,Research & development,RESEARCH AND DEVELOPMENT,SWANSEA UNIVERSITY,ERS-432757-46855,31745,
Department of Health,Department of Health,25/05/2011,Research & development,RESEARCH AND DEVELOPMENT,SWANSEA UNIVERSITY,ERS-432757-46855,37260,
Department of Health,Department of Health,16/05/2011,Research & development,RESEARCH AND DEVELOPMENT,TECHNOLOGY STRATEGY BOARD (TSB),ERS-432111-46543,28778.83,
Department of Health,Department of Health,25/05/2011,Research & development,RESEARCH AND DEVELOPMENT,TEESSIDE UNIVERSITY OF,ERS-432758-46853,25332,
Department of Health,Department of Health,19/05/2011,Research & development,RESEARCH AND DEVELOPMENT,THE HILLINGDON HOSPITALS NHS FOUNDATION TRUST,ERS-432439-46701,40436,
Department of Health,Department of Health,26/05/2011,Research & development,RESEARCH AND DEVELOPMENT,THE ROYAL MARSDEN NHS FOUNDATION TRUST,ERS-432872-46885,26871,
Department of Health,Department of Health,25/05/2011,Research & development,RESEARCH AND DEVELOPMENT,UNIVERSITY COLLEGE LONDON (UCL),ERS-432759-46843,32665,
Department of Health,Department of Health,16/05/2011,Research & development,RESEARCH AND DEVELOPMENT,UNIVERSITY COLLEGE LONDON (UCL),ERS-432116-46545,50312.3,
Department of Health,Department of Health,26/05/2011,Research & development,RESEARCH AND DEVELOPMENT,UNIVERSITY COLLEGE LONDON (UCL),ERS-432887-46895,63352.61,
Department of Health,Department of Health,25/05/2011,Research & development,RESEARCH AND DEVELOPMENT,UNIVERSITY COLLEGE LONDON HOSPITALS NHS FOUNDATION TRUST,ERS-432760-46824,41312,
Department of Health,Department of Health,25/05/2011,Research & development,RESEARCH AND DEVELOPMENT,UNIVERSITY HOSPITALS BRISTOL NHS FOUNDATION TRUST,ERS-432761-46821,15099,
Department of Health,Department of Health,25/05/2011,Research & development,RESEARCH AND DEVELOPMENT,UNIVERSITY HOSPITALS BRISTOL NHS FOUNDATION TRUST,ERS-432761-46821,18320,
Department of Health,Department of Health,26/05/2011,Research & development,RESEARCH AND DEVELOPMENT,UNIVERSITY HOSPITALS BRISTOL NHS FOUNDATION TRUST,ERS-432884-46881,36644.96,
Department of Health,Department of Health,19/05/2011,Research & development,RESEARCH AND DEVELOPMENT,UNIVERSITY HOSPITALS COVENTRY & WARWICKSHIRE NHS TRUST,ERS-432442-46705,701843,
Department of Health,Department of Health,25/05/2011,Research & development,RESEARCH AND DEVELOPMENT,WARWICK UNIVERSITY OF,ERS-432762-46856,20436,
Department of Health,Department of Health,25/05/2011,Research & development,RESEARCH AND DEVELOPMENT,WARWICK UNIVERSITY OF,ERS-432762-46856,26028,
Department of Health,Department of Health,25/05/2011,Research & development,RESEARCH AND DEVELOPMENT,WARWICK UNIVERSITY OF,ERS-432762-46856,38407,
Department of Health,Department of Health,25/05/2011,Research & development,RESEARCH AND DEVELOPMENT,WARWICK UNIVERSITY OF,ERS-432762-46856,44965,
Department of Health,Department of Health,25/05/2011,Research & development,RESEARCH AND DEVELOPMENT,YORK UNIVERSITY OF,ERS-432763-46857,13358,
Department of Health,Department of Health,25/05/2011,Research & development,RESEARCH AND DEVELOPMENT,YORK UNIVERSITY OF,ERS-432763-46857,25315,
Department of Health,Department of Health,25/05/2011,Research & development,RESEARCH AND DEVELOPMENT,YORK UNIVERSITY OF,ERS-432763-46857,27032,
Department of Health,Department of Health,06/05/2011,Grants to non profit institutions (CUR),SOCIAL CARE,ACTION FOR ADVOCACY,ERS-431559-45902,32750,
Department of Health,Department of Health,17/05/2011,Grants to non profit institutions (CUR),SOCIAL CARE,ACTION FOR ADVOCACY,ERS-432303-46622,35000,
Department of Health,Department of Health,06/05/2011,Grants to non profit institutions (CUR),SOCIAL CARE,ACTION FOR ADVOCACY,ERS-431558-45901,42500,
Department of Health,Department of Health,06/05/2011,Grants to non profit institutions (CUR),SOCIAL CARE,ADFAM,ERS-431603-45961,33989,
Department of Health,Department of Health,13/05/2011,Grants to non profit institutions (CUR),SOCIAL CARE,ADVOCACY RESOURCE EXCHANGE,ERS-432056-46511,28991.5,
Department of Health,Department of Health,06/05/2011,Grants to non profit institutions (CUR),SOCIAL CARE,Africa Resource For Kidney Disease,ERS-431605-45981,27500,
Department of Health,Department of Health,12/05/2011,Grants to non profit institutions (CUR),SOCIAL CARE,AGAINST VIOLENCE AND ABUSE (AVA),ERS-431943-46322,33640,
Department of Health,Department of Health,06/05/2011,Grants to non profit institutions (CUR),SOCIAL CARE,AGE UK,ERS-431609-46001,130655,
Department of Health,Department of Health,17/05/2011,Grants to non profit institutions (CUR),SOCIAL CARE,AGE UK,ERS-432302-46621,184121,
Department of Health,Department of Health,25/05/2011,Outsourcing Contract,SOCIAL CARE,BIG LOTTERY FUND,BIG892,81919.2,
Department of Health,Department of Health,09/05/2011,Grants to non profit institutions (CUR),SOCIAL CARE,BLISS THE NATIONAL CHARITY FOR THE NEWBORN,ERS-431676-46021,25730,
Department of Health,Department of Health,18/05/2011,Grants to non profit institutions (CUR),SOCIAL CARE,BRANDON CENTRE FOR COUNSELLING AND PSYCHOTHERAPY FOR YOUNG PEOPLE,ERS-432390-46661,36500,
Department of Health,Department of Health,09/05/2011,Grants to non profit institutions (CUR),SOCIAL CARE,BREAKTHROUGH BREAST CANCER,ERS-431677-46022,25752,
Department of Health,Department of Health,25/05/2011,Grants to non profit institutions (CUR),SOCIAL CARE,BRITISH LIVER TRUST,ERS-432773-46861,53968.5,
Department of Health,Department of Health,12/05/2011,Outsourcing Contract,SOCIAL CARE,BROADCASTING SUPPORT SERVICES,S12-00028,137739.88,
Department of Health,Department of Health,12/05/2011,Grants to non profit institutions (CUR),SOCIAL CARE,CARERS UK,ERS-432019-46423,200000,
Department of Health,Department of Health,12/05/2011,Grants to non profit institutions (CUR),SOCIAL CARE,CHILDRENS HOSPICES UK,ERS-431956-46341,32583.5,
Department of Health,Department of Health,17/05/2011,Grants to non profit institutions (CUR),SOCIAL CARE,CONNECT (THE COMMUNICATION DISABILTY NETWORK),ERS-432225-46603,27876.5,
Department of Health,Department of Health,12/05/2011,Grants to non profit institutions (CUR),SOCIAL CARE,CONSORTIUM OF LGBT VCOS,ERS-431935-46321,32081.5,
Department of Health,Department of Health,04/05/2011,Other programme expenditure,SOCIAL CARE,DEPARTMENT FOR EDUCATION (DFE),350001185,26444.28,
Department of Health,Department of Health,11/05/2011,Grants to non profit institutions (CUR),SOCIAL CARE,DISABLED LIVING FOUNDATION,ERS-431855-46262,28057.5,
Department of Health,Department of Health,25/05/2011,Grants to non profit institutions (CUR),SOCIAL CARE,DONOR CONCEPTION NETWORK,ERS-432779-46863,25000,
Department of Health,Department of Health,01/05/2011,Contactor/ Staff Subsitution,SOCIAL CARE,EAST OF ENGLAND SHA,9203065,300000,
Department of Health,Department of Health,19/05/2011,Grants to non profit institutions (CUR),SOCIAL CARE,EATING DISORDERS ASSOCIATION,ERS-432449-46711,36357.5,
Department of Health,Department of Health,13/05/2011,Professional fees,SOCIAL CARE,ECOTEC RESEARCH AND CONSULTING LTD,INV09863,48597.35,
Department of Health,Department of Health,13/05/2011,Professional fees,SOCIAL CARE,ECOTEC RESEARCH AND CONSULTING LTD,INV10010,57000,
Department of Health,Department of Health,13/05/2011,Professional fees,SOCIAL CARE,ECOTEC RESEARCH AND CONSULTING LTD,INV09864,66000,
Department of Health,Department of Health,13/05/2011,Professional fees,SOCIAL CARE,ECOTEC RESEARCH AND CONSULTING LTD,C4360/2,601000,
Department of Health,Department of Health,17/05/2011,Grants to non profit institutions (CUR),SOCIAL CARE,ELDERLY ACCOMMODATION COUNSEL,ERS-432222-46602,42025,
Department of Health,Department of Health,12/05/2011,Grants to non profit institutions (CUR),SOCIAL CARE,FOREST BUS LTD,ERS-431944-46323,26655,
Department of Health,Department of Health,06/05/2011,Grants to non profit institutions (CUR),SOCIAL CARE,FRIENDS FAMILIES AND TRAVELLERS,ERS-431597-45944,29363,
Department of Health,Department of Health,11/05/2011,Grants to non profit institutions (CUR),SOCIAL CARE,HEADWAY NAT HEAD INJURIES ASN,ERS-431885-46302,38087,
Department of Health,Department of Health,04/05/2011,Other programme expenditure,SOCIAL CARE,HOME OFFICE,1099475,825000,
Department of Health,Department of Health,11/05/2011,Grants to non profit institutions (CUR),SOCIAL CARE,I CAN CHARITY,ERS-431926-46317,32000,
Department of Health,Department of Health,12/05/2011,Grants to non profit institutions (CUR),SOCIAL CARE,LIFELINE COMMUNITY PROJECTS,ERS-432012-46422,141709,
Department of Health,Department of Health,10/05/2011,Grants to non profit institutions (CUR),SOCIAL CARE,MARIE CURIE CANCER CARE,ERS-431818-46121,28538,
Department of Health,Department of Health,24/05/2011,Grants to non profit institutions (CUR),SOCIAL CARE,MENTAL HEALTH PROVIDERS FORUM,ERS-432719-46801,194351,
Department of Health,Department of Health,17/05/2011,Grants to non profit institutions (CUR),SOCIAL CARE,NAAPS UK LTD,ERS-432227-46604,36901,
Department of Health,Department of Health,27/05/2011,Grants to non profit institutions (CUR),SOCIAL CARE,NAAPS UK LTD,IW1488/ERS-432227-46604,36901,
Department of Health,Department of Health,12/05/2011,Grants to non profit institutions (CUR),SOCIAL CARE,NACRO,ERS-432023-46426,175182,
Department of Health,Department of Health,12/05/2011,Grants to non profit institutions (CUR),SOCIAL CARE,NAM PUBLICATIONS,ERS-432002-46401,28284,
Department of Health,Department of Health,25/05/2011,Grants to non profit institutions (CUR),SOCIAL CARE,NATIONAL AIDS TRUST (NAT),ERS-432775-46862,30000,
Department of Health,Department of Health,06/05/2011,Grants to non profit institutions (CUR),SOCIAL CARE,NATIONAL CHILDRENS BUREAU,ERS-431596-45943,31452.5,
Department of Health,Department of Health,13/05/2011,Grants to non profit institutions (CUR),SOCIAL CARE,NATIONAL CHILDRENS BUREAU,ERS-432043-46481,34666.5,
Department of Health,Department of Health,12/05/2011,Grants to non profit institutions (CUR),SOCIAL CARE,NATIONAL CHILDRENS BUREAU,ERS-432027-46429,224000,
Department of Health,Department of Health,06/05/2011,Grants to non profit institutions (CUR),SOCIAL CARE,NATIONAL DEVELOPMENT TEAM FOR INCLUSION NDTI,ERS-431575-45921,26147.5,
Department of Health,Department of Health,10/05/2011,Grants to non profit institutions (CUR),SOCIAL CARE,NATIONAL HEART FORUM,ERS-431822-46141,118243,
Department of Health,Department of Health,12/05/2011,Grants to non profit institutions (CUR),SOCIAL CARE,NATIONAL HEART FORUM,ERS-432025-46427,222000,
Department of Health,Department of Health,10/05/2011,Grants to non profit institutions (CUR),SOCIAL CARE,PLATFORM 51,ERS-431792-46081,36298,
Department of Health,Department of Health,12/05/2011,Grants to non profit institutions (CUR),SOCIAL CARE,PLATFORM 51,ERS-432028-46430,200000,
Department of Health,Department of Health,11/05/2011,Grants to non profit institutions (CUR),SOCIAL CARE,RACE EQUALITY FOUNDATION,ERS-431870-46301,33232,
Department of Health,Department of Health,12/05/2011,Grants to non profit institutions (CUR),SOCIAL CARE,RACE EQUALITY FOUNDATION,ERS-432011-46421,130746,
Department of Health,Department of Health,12/05/2011,Grants to non profit institutions (CUR),SOCIAL CARE,SOCIETY FOR MPS DISEASES,ERS-432035-46441,25000,
Department of Health,Department of Health,10/05/2011,Grants to non profit institutions (CUR),SOCIAL CARE,STRENGTHS IN COMMUNITIES CIC TAS PARENTS 1ST,ERS-431815-46104,35662.5,
Department of Health,Department of Health,16/05/2011,Grants to non profit institutions (CUR),SOCIAL CARE,SUE RYDER CARE,ERS-432181-46581,47248.5,
Department of Health,Department of Health,11/05/2011,Grants to non profit institutions (CUR),SOCIAL CARE,THE ANNA FREUD CENTRE,ERS-431924-46315,26889.5,
Department of Health,Department of Health,03/05/2011,Grants to non profit institutions (CUR),SOCIAL CARE,THE ANNA FREUD CENTRE,ERS-431356-45721,27073,
Department of Health,Department of Health,06/05/2011,Grants to non profit institutions (CUR),SOCIAL CARE,THE ASIAN HEALTH AGENCY,ERS-431564-45904,30113.5,
Department of Health,Department of Health,06/05/2011,Grants to non profit institutions (CUR),SOCIAL CARE,THE CHILD ACCIDENT PREVENTION TRUST,ERS-431590-45942,27072.5,
Department of Health,Department of Health,12/05/2011,Grants to non profit institutions (CUR),SOCIAL CARE,THE MENS HEALTH FORUM,ERS-431989-46363,30072.5,
Department of Health,Department of Health,26/05/2011,Grants to non profit institutions (CUR),SOCIAL CARE,THE MENS HEALTH FORUM,ERS-432942-46922,130000,
Department of Health,Department of Health,24/05/2011,Grants to non profit institutions (CUR),SOCIAL CARE,THE NATIONAL CARE FORUM,ERS-432684-46781,124000,
Department of Health,Department of Health,12/05/2011,Grants to non profit institutions (CUR),SOCIAL CARE,THE NATIONAL COUNCIL FOR PALLIATIVE CARE,ERS-432026-46428,196245,
Department of Health,Department of Health,05/05/2011,Grants to non profit institutions (CUR),SOCIAL CARE,THE NATIONAL SPIRITUALITY AND MENTAL HEALTH FORUM,ERS-431518-45841,29500,
Department of Health,Department of Health,11/05/2011,Grants to non profit institutions (CUR),SOCIAL CARE,THE NEUROLOGICAL ALLIANCE,ERS-431853-46261,43650,
Department of Health,Department of Health,12/05/2011,Grants to non profit institutions (CUR),SOCIAL CARE,THE NUTRITION SOCIETY,ERS-431992-46364,87500,
Department of Health,Department of Health,12/05/2011,Grants to non profit institutions (CUR),SOCIAL CARE,THE PLACE2BE,ERS-431999-46381,28804,
Department of Health,Department of Health,12/05/2011,Grants to non profit institutions (CUR),SOCIAL CARE,THE ROYAL ASSOCIATION FOR DISABILITY RIGHTS,ERS-432022-46424,220000,
Department of Health,Department of Health,11/05/2011,Grants to non profit institutions (CUR),SOCIAL CARE,THE SICKLE CELL SOCIETY,ERS-431925-46316,43679.5,
Department of Health,Department of Health,10/05/2011,Professional fees,SOCIAL CARE,THE SOCIETY OF APOTHECARIES,210-1,26250,
Department of Health,Department of Health,11/05/2011,Grants to non profit institutions (CUR),SOCIAL CARE,THE STROKE ASSOCIATION,ERS-431922-46313,27082.5,
Department of Health,Department of Health,06/05/2011,Other programme expenditure,SOCIAL CARE,THE YOUNG FOUNDATION,1658,50000,
Department of Health,Department of Health,06/05/2011,Other programme expenditure,SOCIAL CARE,THE YOUNG FOUNDATION,2042,50000,
Department of Health,Department of Health,11/05/2011,Grants to non profit institutions (CUR),SOCIAL CARE,TOMMYS,ERS-431920-46312,54666.5,
Department of Health,Department of Health,05/05/2011,Grants to non profit institutions (CUR),SOCIAL CARE,TRENT DSDC,ERS-431524-45843,30654.5,
Department of Health,Department of Health,27/05/2011,Grants to non profit institutions (CUR),SOCIAL CARE,UNIVERSITY COLLEGE LONDON (UCL),ERS-432997-46961,340000,
Department of Health,Department of Health,26/05/2011,Grants to non profit institutions (CUR),SOCIAL CARE,UNTIL THE VIOLENCE STOPS,ERS-432922-46901,29305.5,
Department of Health,Department of Health,10/05/2011,Grants to non profit institutions (CUR),SOCIAL CARE,VISION 2020 UK,ERS-431807-46101,40401.5,
Department of Health,Department of Health,13/05/2011,Grants to non profit institutions (CUR),SOCIAL CARE,YORKSHIRE AND THE HUMBER REGIONAL FORUM LTD,ERS-432090-46521,81717,
Department of Health,Department of Health,13/05/2011,Grants to non profit institutions (CUR),SOCIAL CARE,YORKSHIRE AND THE HUMBER REGIONAL FORUM LTD,ERS-432091-46522,344739.6,
Department of Health,Department of Health,11/05/2011,Grants to non profit institutions (CUR),SOCIAL CARE,YOUTHNET,ERS-431917-46311,36662.5,
Department of Health,Department of Health,09/05/2011,Grants to non profit institutions (CUR),SOCIAL CARE,YOUTHNET,ERS-431718-46061,48320,
Department of Health,Department of Health,11/05/2011,IT minor costs non capital,WORKFORCE,ASTON UNIVERSITY,28023388,30099.5,
Department of Health,Department of Health,04/05/2011,Publicity & advertising,WORKFORCE,CARDIFF UNIVERSITY,1016644,243000,
Department of Health,Department of Health,04/05/2011,Admin Revenue Grant-in-Aid ENDPBs,WORKFORCE,COUNCIL FOR HEALTHCARE REGULATORY EXCELLENCE (CHRE),2011/12,150000,
Department of Health,Department of Health,24/05/2011,Admin Revenue Grant-in-Aid ENDPBs,WORKFORCE,COUNCIL FOR HEALTHCARE REGULATORY EXCELLENCE (CHRE),DH002,200000,
Department of Health,Department of Health,25/05/2011,Consultancy/Professional Advice,WORKFORCE,DEPARTMENT FOR WORK AND PENSIONS (DWP),2883070,67168.05,
Department of Health,Department of Health,04/05/2011,Admin Revenue Grant-in-Aid ENDPBs,WORKFORCE,GENERAL SOCIAL CARE COUNCIL (GSCC),SL02361,619000,
Department of Health,Department of Health,27/05/2011,Revenue Grants to Other Bodies,WORKFORCE,GENERAL SOCIAL CARE COUNCIL (GSCC),SL02364,686167,
Department of Health,Department of Health,04/05/2011,Outsourcing Contract,WORKFORCE,MCKESSON INFORMATION SOLUTIONS UK LTD,INV006863,78757.24,
Department of Health,Department of Health,04/05/2011,Outsourcing Contract,WORKFORCE,MCKESSON INFORMATION SOLUTIONS UK LTD,INV006886,87035.3,
Department of Health,Department of Health,04/05/2011,Outsourcing Contract,WORKFORCE,MCKESSON INFORMATION SOLUTIONS UK LTD,INV006863,1891842.26,
Department of Health,Department of Health,27/05/2011,Addition Clearing - SW LIC,WORKFORCE,METHODS CONSULTING,100014532,43170,
Department of Health,Department of Health,13/05/2011,Outsourcing Contract,WORKFORCE,MOUCHEL MANAGEMENT CONSULTING LTD,90067746,53772,
Department of Health,Department of Health,23/05/2011,Professional fees,WORKFORCE,NHS BUSINESS SERVICES AUTHORITY (NHSBSA),2360,1425418.8,
Department of Health,Department of Health,16/05/2011,Provisions cash payment,WORKFORCE,NHS INJURY BENEFITS SCHEME,ERS-432194-46582,4113268.42,
Department of Health,Department of Health,06/05/2011,Revenue Grants to Other Bodies,WORKFORCE,OFFICE OF THE HEALTH PROFESSIONS ADJUDICATOR OHPA,DLG-PS-OHPA-11,52821,
Department of Health,Department of Health,13/05/2011,Revenue Grants to Other Bodies,WORKFORCE,OFFICE OF THE HEALTH PROFESSIONS ADJUDICATOR OHPA,DLG-PS-OHPA-12,52876,
Department of Health,Department of Health,25/05/2011,Contactor/ Staff Subsitution,WORKFORCE,SAPIENT LTD,21542,1673.27,
Department of Health,Department of Health,25/05/2011,Contactor/ Staff Subsitution,WORKFORCE,SAPIENT LTD,21125,26708.73,
Department of Health,Department of Health,25/05/2011,Contactor/ Staff Subsitution,WORKFORCE,SAPIENT LTD,21125,27884.99,
Department of Health,Department of Health,25/05/2011,Contactor/ Staff Subsitution,WORKFORCE,SAPIENT LTD,21542,40970.98,
Department of Health,Department of Health,25/05/2011,Outsourcing Contract,WORKFORCE,SAPIENT LTD,21542,9821.88,
Department of Health,Department of Health,25/05/2011,Outsourcing Contract,WORKFORCE,SAPIENT LTD,21125,42164.16,
Department of Health,Department of Health,04/05/2011,Revenue Grants to Other Bodies,WORKFORCE,SKILLS FOR CARE LTD,ERS-431470-45781,15160900,
Department of Health,Department of Health,04/05/2011,Revenue Grants to Other Bodies,WORKFORCE,SOCIAL CARE INSTITUTE FOR EXCELLENCE (SCIE),ERS-431475-45801,1150000,
Department of Health,Department of Health,04/05/2011,Revenue Grants to Other Bodies,WORKFORCE,THE NATIONAL SKILLS ACADEMY FOR SOCIAL CARE,ERS-431477-45802,2945000,
Department of Health,Department of Health,12/05/2011,Computer Hardware Purch,INFORMATICS,INSIGHT DIRECT (UK) LTD,12775209,28338,
Department of Health,Department of Health,12/05/2011,Computer Hardware Purch,INFORMATICS,INSIGHT DIRECT (UK) LTD,12799595,45653.68,
Department of Health,Department of Health,12/05/2011,Computer Hardware Purch,INFORMATICS,INSIGHT DIRECT (UK) LTD,12966282,45931.17,
Department of Health,Department of Health,12/05/2011,Computer Hardware Purch,INFORMATICS,INSIGHT DIRECT (UK) LTD,12966284,29371.89,
Department of Health,Department of Health,27/05/2011,Computer Hardware Purch,INFORMATICS,PROBRAND LTD,12999172,0.01,
Department of Health,Department of Health,27/05/2011,Computer Maintenance,INFORMATICS,PROBRAND LTD,12912757,30000,
Department of Health,Department of Health,27/05/2011,Computer Maintenance,INFORMATICS,PROBRAND LTD,12941516,61564.84,
Department of Health,Department of Health,27/05/2011,Computer Maintenance,INFORMATICS,PROBRAND LTD,12999172,101180.26,
Department of Health,Department of Health,19/05/2011,Computer Maintenance,INFORMATICS,IDENTITY & PASSPORT SERVICE,12920547,400000,
Department of Health,Department of Health,19/05/2011,Computer Maintenance,INFORMATICS,IDENTITY & PASSPORT SERVICE,12920548,155000,
Department of Health,Department of Health,19/05/2011,Computer Maintenance,INFORMATICS,IDENTITY & PASSPORT SERVICE,12991817,-155000,
Department of Health,Department of Health,19/05/2011,Computer Maintenance,INFORMATICS,IDENTITY & PASSPORT SERVICE,12991818,-400000,
Department of Health,Department of Health,19/05/2011,Computer Maintenance,INFORMATICS,IDENTITY & PASSPORT SERVICE,12991819,138750,
Department of Health,Department of Health,04/05/2011,Computer Software/License,INFORMATICS,INFORMATICS INC,12887361,36540,
Department of Health,Department of Health,03/05/2011,Computer Software/License,INFORMATICS,ERNST & YOUNG LLP,12839536,65000,
Department of Health,Department of Health,12/05/2011,Computer Software/License,INFORMATICS,INTERSYSTEMS EUROPE,12764499,27974.78,
Department of Health,Department of Health,19/05/2011,Computer Software/License,INFORMATICS,INTERSYSTEMS EUROPE,12999417,385657.15,
Department of Health,Department of Health,13/05/2011,Contr Other External,INFORMATICS,NHS BUSINESS SERVICES AUTHORITY,12941209,3359.16,
Department of Health,Department of Health,05/05/2011,Contr Other External,INFORMATICS,CAPITA BUSINESS SERVICES LTD,12927120,1323190.82,
Department of Health,Department of Health,05/05/2011,Contr Other External,INFORMATICS,CAPITA BUSINESS SERVICES LTD,12927121,1323190.82,
Department of Health,Department of Health,09/05/2011,Contr Other External,INFORMATICS,CABLE & WIRELESS UK,12909103,26345.23,
Department of Health,Department of Health,27/05/2011,Contr Other External,INFORMATICS,CABLE & WIRELESS UK,12958666,131796.29,
Department of Health,Department of Health,27/05/2011,Contr Other External,INFORMATICS,CABLE & WIRELESS UK,12958668,161808,
Department of Health,Department of Health,27/05/2011,Contr Other External,INFORMATICS,CABLE & WIRELESS UK,12958670,99684.17,
Department of Health,Department of Health,03/05/2011,External Consultancy Fees,INFORMATICS,ERNST & YOUNG LLP,12839536,473225.59,
Department of Health,Department of Health,27/05/2011,External Consultancy Fees,INFORMATICS,METHODS CONSULTING LTD,13032492,49212.5,
Department of Health,Department of Health,04/05/2011,External Consultancy Fees,INFORMATICS,GARTNER UK LTD,12889101,72000,
Department of Health,Department of Health,31/05/2011,Hardware & Crockery,INFORMATICS,PROBRAND LTD,12966288,47475.63,
Department of Health,Department of Health,12/05/2011,Legal / Prof Fees,INFORMATICS,DLA PIPER UK LLP,12853391,178676.5,
Department of Health,Department of Health,09/05/2011,Legal / Prof Fees,INFORMATICS,DLA PIPER UK LLP,12935322,29436.87,
Department of Health,Department of Health,12/05/2011,Legal / Prof Fees,INFORMATICS,MILBANK TWEED HADLEY & MCCLOY LLP,12896493,164149.23,
Department of Health,Department of Health,12/05/2011,Legal / Prof Fees,INFORMATICS,MILBANK TWEED HADLEY & MCCLOY LLP,12896494,24375.99,
Department of Health,Department of Health,31/05/2011,Legal / Prof Fees,INFORMATICS,MILBANK TWEED HADLEY & MCCLOY LLP,12981786,35245.67,
Department of Health,Department of Health,31/05/2011,Legal / Prof Fees,INFORMATICS,MILBANK TWEED HADLEY & MCCLOY LLP,13007785,158666.35,
Department of Health,Department of Health,12/05/2011,Mobile Phones,INFORMATICS,VODAFONE CORPORATE LTD,12927522,59530.9,
Department of Health,Department of Health,13/05/2011,Payroll Ded'ns N/S Curr,INFORMATICS,NHS BUSINESS SERVICES AUTHORITY,12941209,89687.35,
Department of Health,Department of Health,06/05/2011,Phone Rental and Calls,INFORMATICS,BT PLC,12909024,28444.86,
Department of Health,Department of Health,16/05/2011,Staff Consultancy & Suppt,INFORMATICS,ASE CONSULTING LTD,12958686,19550,
Department of Health,Department of Health,04/05/2011,Staff Consultancy & Suppt,INFORMATICS,ALPINE CONSORTIUM,12879498,26450,
Department of Health,Department of Health,04/05/2011,Staff Consultancy & Suppt,INFORMATICS,ALPINE CONSORTIUM,12879525,22302,
Department of Health,Department of Health,04/05/2011,Staff Consultancy & Suppt,INFORMATICS,ALPINE CONSORTIUM,12889079,24150,
Department of Health,Department of Health,16/05/2011,Staff Consultancy & Suppt,INFORMATICS,ASE CONSULTING LTD,12958686,10016.5,
Department of Health,Department of Health,16/05/2011,Staff Consultancy & Suppt,INFORMATICS,ASE CONSULTING LTD,12958694,59940,
Department of Health,Department of Health,17/05/2011,Staff Consultancy & Suppt,INFORMATICS,ASE CONSULTING LTD,12980693,22100,
Department of Health,Department of Health,18/05/2011,Staff Consultancy & Suppt,INFORMATICS,PRODIGY LEARNING LTD,12991802,241000,
Department of Health,Department of Health,10/05/2011,Staff Consultancy & Suppt,INFORMATICS,CAPGEMINI UK PLC,12927533,32692.5,
Department of Health,Department of Health,16/05/2011,Staff Consultancy & Suppt,INFORMATICS,ASE CONSULTING LTD,12958686,146395,
Department of Health,Department of Health,17/05/2011,Staff Consultancy & Suppt,INFORMATICS,ASE CONSULTING LTD,12980693,57850,
Department of Health,Department of Health,11/05/2011,Staff Consultancy & Suppt,INFORMATICS,CAPGEMINI UK PLC,12920532,61804.62,
Department of Health,Department of Health,05/05/2011,Staff Consultancy & Suppt,INFORMATICS,CAPGEMINI UK PLC,12920535,24610,
Department of Health,Department of Health,10/05/2011,Staff Consultancy & Suppt,INFORMATICS,CAPGEMINI UK PLC,12927533,58347,
Department of Health,Department of Health,04/05/2011,Staff Consultancy & Suppt,INFORMATICS,TRIBAL CONSULTING LTD,12889082,21600,
Department of Health,Department of Health,27/05/2011,Travel & Subsistence,INFORMATICS,HRG UK,13014469,123.4,
Department of Health,Department of Health,27/05/2011,Travel & Subsistence,INFORMATICS,HRG UK,13014469,249.19,
Department of Health,Department of Health,27/05/2011,Travel & Subsistence,INFORMATICS,HRG UK,13014469,226.8,
Department of Health,Department of Health,27/05/2011,Travel & Subsistence,INFORMATICS,HRG UK,13014469,297.61,
Department of Health,Department of Health,27/05/2011,Travel & Subsistence,INFORMATICS,HRG UK,13014469,1895.62,
Department of Health,Department of Health,27/05/2011,Travel & Subsistence,INFORMATICS,HRG UK,13014469,1567.82,
Department of Health,Department of Health,27/05/2011,Travel & Subsistence,INFORMATICS,HRG UK,13014469,2329.58,
Department of Health,Department of Health,27/05/2011,Travel & Subsistence,INFORMATICS,HRG UK,13014469,138.23,
Department of Health,Department of Health,27/05/2011,Travel & Subsistence,INFORMATICS,HRG UK,13014469,535.2,
Department of Health,Department of Health,27/05/2011,Travel & Subsistence,INFORMATICS,HRG UK,13014469,451.2,
Department of Health,Department of Health,27/05/2011,Travel & Subsistence,INFORMATICS,HRG UK,13014469,697.56,
Department of Health,Department of Health,27/05/2011,Travel & Subsistence,INFORMATICS,HRG UK,13014469,2071.4,
Department of Health,Department of Health,27/05/2011,Travel & Subsistence,INFORMATICS,HRG UK,13014469,287.81,
Department of Health,Department of Health,27/05/2011,Travel & Subsistence,INFORMATICS,HRG UK,13014469,4408.6,
Department of Health,Department of Health,27/05/2011,Travel & Subsistence,INFORMATICS,HRG UK,13014469,433.6,
Department of Health,Department of Health,27/05/2011,Travel & Subsistence,INFORMATICS,HRG UK,13014469,78.4,
Department of Health,Department of Health,27/05/2011,Travel & Subsistence,INFORMATICS,HRG UK,13014469,186.4,
Department of Health,Department of Health,27/05/2011,Travel & Subsistence,INFORMATICS,HRG UK,13014469,261.4,
Department of Health,Department of Health,27/05/2011,Travel & Subsistence,INFORMATICS,HRG UK,13014469,419.2,
Department of Health,Department of Health,27/05/2011,Travel & Subsistence,INFORMATICS,HRG UK,13014469,516.19,
Department of Health,Department of Health,27/05/2011,Travel & Subsistence,INFORMATICS,HRG UK,13014469,392.36,
Department of Health,Department of Health,27/05/2011,Travel & Subsistence,INFORMATICS,HRG UK,13014469,1774.79,
Department of Health,Department of Health,27/05/2011,Travel & Subsistence,INFORMATICS,HRG UK,13014469,373.61,
Department of Health,Department of Health,27/05/2011,Travel & Subsistence,INFORMATICS,HRG UK,13014469,1629.41,
Department of Health,Department of Health,27/05/2011,Travel & Subsistence,INFORMATICS,HRG UK,13014469,587.88,
Department of Health,Department of Health,27/05/2011,Travel & Subsistence,INFORMATICS,HRG UK,13014469,568.99,
Department of Health,Department of Health,27/05/2011,Travel & Subsistence,INFORMATICS,HRG UK,13014469,81.4,
Department of Health,Department of Health,27/05/2011,Travel & Subsistence,INFORMATICS,HRG UK,13014469,630.2,
Department of Health,Department of Health,27/05/2011,Travel & Subsistence,INFORMATICS,HRG UK,13014469,812.18,
Department of Health,Department of Health,27/05/2011,Travel & Subsistence,INFORMATICS,HRG UK,13014469,274.21,
Department of Health,Department of Health,27/05/2011,Travel & Subsistence,INFORMATICS,HRG UK,13014469,2278.36,
Department of Health,Department of Health,27/05/2011,Travel & Subsistence,INFORMATICS,HRG UK,13014469,849.31,
Department of Health,Department of Health,27/05/2011,Travel & Subsistence,INFORMATICS,HRG UK,13014469,233.53,
Department of Health,Department of Health,27/05/2011,Travel & Subsistence,INFORMATICS,HRG UK,13014469,749.39,
Department of Health,Department of Health,27/05/2011,Travel & Subsistence,INFORMATICS,HRG UK,13014469,2653.08,
Department of Health,Department of Health,27/05/2011,Travel & Subsistence,INFORMATICS,HRG UK,13014469,4659.8,
Department of Health,Department of Health,27/05/2011,Travel & Subsistence,INFORMATICS,HRG UK,13014469,351.2,
Department of Health,Department of Health,27/05/2011,Travel & Subsistence,INFORMATICS,HRG UK,13014469,970.68,
Department of Health,Department of Health,27/05/2011,Travel & Subsistence,INFORMATICS,HRG UK,13014469,3668.87,
Department of Health,Department of Health,27/05/2011,Travel & Subsistence,INFORMATICS,HRG UK,13014469,463.2,
Department of Health,Department of Health,27/05/2011,Travel & Subsistence,INFORMATICS,HRG UK,13014469,160.8,
Department of Health,Department of Health,27/05/2011,Travel & Subsistence,INFORMATICS,HRG UK,13014469,841.7,
Department of Health,Department of Health,27/05/2011,Travel & Subsistence,INFORMATICS,HRG UK,13014469,418.19,
Department of Health,Department of Health,27/05/2011,Travel & Subsistence,INFORMATICS,HRG UK,13014469,123.4,
Department of Health,Department of Health,27/05/2011,Travel & Subsistence,INFORMATICS,HRG UK,13014469,81.4,
Department of Health,Department of Health,27/05/2011,Travel & Subsistence,INFORMATICS,HRG UK,13014469,654.6,
Department of Health,Department of Health,27/05/2011,Travel & Subsistence,INFORMATICS,HRG UK,13014469,186.24,
Department of Health,Department of Health,27/05/2011,Travel & Subsistence,INFORMATICS,HRG UK,13014469,1211.78,
Department of Health,Department of Health,27/05/2011,Travel & Subsistence,INFORMATICS,HRG UK,13014469,526,
Department of Health,Department of Health,27/05/2011,Travel & Subsistence,INFORMATICS,HRG UK,13014469,88.4,
Department of Health,Department of Health,27/05/2011,Travel & Subsistence,INFORMATICS,HRG UK,13014469,164.8,
Department of Health,Department of Health,27/05/2011,Travel & Subsistence,INFORMATICS,HRG UK,13014469,267.6,
Department of Health,Department of Health,27/05/2011,Travel & Subsistence,INFORMATICS,HRG UK,13014469,788.77,
Department of Health,Department of Health,27/05/2011,Travel & Subsistence,INFORMATICS,HRG UK,13014469,999.6,
Department of Health,Department of Health,27/05/2011,Travel & Subsistence,INFORMATICS,HRG UK,13014469,1193.6,
Department of Health,Department of Health,27/05/2011,Travel & Subsistence,INFORMATICS,HRG UK,13014469,232.2,
Department of Health,Department of Health,27/05/2011,Travel & Subsistence,INFORMATICS,HRG UK,13014469,154.8,
Department of Health,Department of Health,03/05/2011,CASH FUNDING Rev Inside RAB,FINANCE & OPERATIONS (DM),KIRKLEES PCT,HAFS-10536,47000000,
Department of Health,Department of Health,03/05/2011,CASH FUNDING Rev Inside RAB,FINANCE & OPERATIONS (DM),KNOWSLEY PCT,HAFS-10537,20300000,
Department of Health,Department of Health,03/05/2011,CASH FUNDING Rev Inside RAB,FINANCE & OPERATIONS (DM),LAMBETH PCT,HAFS-10538,50000000,
Department of Health,Department of Health,03/05/2011,CASH FUNDING Rev Inside RAB,FINANCE & OPERATIONS (DM),LEEDS PCT,HAFS-10539,94996000,
Department of Health,Department of Health,03/05/2011,CASH FUNDING Rev Inside RAB,FINANCE & OPERATIONS (DM),LEICESTER CITY PCT,HAFS-10540,37200000,
Department of Health,Department of Health,03/05/2011,CASH FUNDING Rev Inside RAB,FINANCE & OPERATIONS (DM),LEICESTERSHIRE COUNTY & RUTLAND PCT,HAFS-10541,55000000,
Department of Health,Department of Health,03/05/2011,CASH FUNDING Rev Inside RAB,FINANCE & OPERATIONS (DM),LEWISHAM PCT,HAFS-10542,39000000,
Department of Health,Department of Health,03/05/2011,CASH FUNDING Rev Inside RAB,FINANCE & OPERATIONS (DM),LINCOLNSHIRE PCT,HAFS-10543,92000000,
Department of Health,Department of Health,03/05/2011,CASH FUNDING Rev Inside RAB,FINANCE & OPERATIONS (DM),LIVERPOOL PCT,HAFS-10544,65150000,
Department of Health,Department of Health,03/05/2011,CASH FUNDING Rev Inside RAB,FINANCE & OPERATIONS (DM),LONDON SHA,HAFS-10545,100000000,
Department of Health,Department of Health,03/05/2011,CASH FUNDING Rev Inside RAB,FINANCE & OPERATIONS (DM),LUTON TEACHING PCT,HAFS-10546,22200000,
Department of Health,Department of Health,03/05/2011,CASH FUNDING Rev Inside RAB,FINANCE & OPERATIONS (DM),MANCHESTER PCT,HAFS-10547,68500000,
Department of Health,Department of Health,03/05/2011,CASH FUNDING Rev Inside RAB,FINANCE & OPERATIONS (DM),MEDWAY TEACHING PCT,HAFS-10548,32000000,
Department of Health,Department of Health,03/05/2011,CASH FUNDING Rev Inside RAB,FINANCE & OPERATIONS (DM),MID ESSEX PCT,HAFS-10549,38000000,
Department of Health,Department of Health,03/05/2011,CASH FUNDING Rev Inside RAB,FINANCE & OPERATIONS (DM),MIDDLESBOROUGH PCT,HAFS-10550,22600000,
Department of Health,Department of Health,03/05/2011,CASH FUNDING Rev Inside RAB,FINANCE & OPERATIONS (DM),MILTON KEYNES PCT,HAFS-10551,32000000,
Department of Health,Department of Health,03/05/2011,CASH FUNDING Rev Inside RAB,FINANCE & OPERATIONS (DM),NATIONAL INSTITUTE FOR CLINICAL EXCELLENCE (NICE),HAFS-10552,4000000,
Department of Health,Department of Health,03/05/2011,CASH FUNDING Rev Inside RAB,FINANCE & OPERATIONS (DM),NEWCASTLE PCT,HAFS-10553,37850000,
Department of Health,Department of Health,03/05/2011,CASH FUNDING Rev Inside RAB,FINANCE & OPERATIONS (DM),NEWHAM PCT,HAFS-10554,51000000,
Department of Health,Department of Health,03/05/2011,CASH FUNDING Rev Inside RAB,FINANCE & OPERATIONS (DM),NHS BUSINESS SERVICES AUTHORITY (NHSBSA),HAFS-10555,7155000,
Department of Health,Department of Health,03/05/2011,CASH FUNDING Rev Inside RAB,FINANCE & OPERATIONS (DM),NHS INSTITUTE FOR INNOVATION AND IMPROVEMENT,HAFS-10557,3500000,
Department of Health,Department of Health,03/05/2011,CASH FUNDING Rev Inside RAB,FINANCE & OPERATIONS (DM),NHS LITIGATION AUTHORITY,HAFS-10558,60000000,
Department of Health,Department of Health,03/05/2011,CASH FUNDING Rev Inside RAB,FINANCE & OPERATIONS (DM),NORFOLK PCT,HAFS-10559,90000000,
Department of Health,Department of Health,03/05/2011,CASH FUNDING Rev Inside RAB,FINANCE & OPERATIONS (DM),NORTH EAST ESSEX PCT,HAFS-10560,30000000,
Department of Health,Department of Health,03/05/2011,CASH FUNDING Rev Inside RAB,FINANCE & OPERATIONS (DM),NORTH EAST LINCOLNSHIRE CARE TRUST PLUS,HAFS-10561,17400000,
Department of Health,Department of Health,03/05/2011,CASH FUNDING Rev Inside RAB,FINANCE & OPERATIONS (DM),NORTH EAST SHA,HAFS-10562,20000000,
Department of Health,Department of Health,03/05/2011,CASH FUNDING Rev Inside RAB,FINANCE & OPERATIONS (DM),NORTH LANCASHIRE PCT,HAFS-10563,38208000,
Department of Health,Department of Health,03/05/2011,CASH FUNDING Rev Inside RAB,FINANCE & OPERATIONS (DM),NORTH LINCOLNSHIRE PCT,HAFS-10564,19700000,
Department of Health,Department of Health,03/05/2011,CASH FUNDING Rev Inside RAB,FINANCE & OPERATIONS (DM),NORTH SOMERSET PCT,HAFS-10565,24000000,
Department of Health,Department of Health,03/05/2011,CASH FUNDING Rev Inside RAB,FINANCE & OPERATIONS (DM),NORTH STAFFORDSHIRE PCT,HAFS-10566,24500000,
Department of Health,Department of Health,03/05/2011,CASH FUNDING Rev Inside RAB,FINANCE & OPERATIONS (DM),NORTH TYNESIDE PCT,HAFS-10567,29950000,
Department of Health,Department of Health,03/05/2011,CASH FUNDING Rev Inside RAB,FINANCE & OPERATIONS (DM),NORTH WEST SHA,HAFS-10568,63200000,
Department of Health,Department of Health,03/05/2011,CASH FUNDING Rev Inside RAB,FINANCE & OPERATIONS (DM),NORTH YORKSHIRE & YORK PCT,HAFS-10569,89000000,
Department of Health,Department of Health,03/05/2011,CASH FUNDING Rev Inside RAB,FINANCE & OPERATIONS (DM),NORTHAMPTONSHIRE PCT,HAFS-10570,75000000,
Department of Health,Department of Health,03/05/2011,CASH FUNDING Rev Inside RAB,FINANCE & OPERATIONS (DM),NORTHUMBERLAND CARE TRUST,HAFS-10571,43750000,
Department of Health,Department of Health,03/05/2011,CASH FUNDING Rev Inside RAB,FINANCE & OPERATIONS (DM),NOTTINGHAM CITY PCT,HAFS-10572,34000000,
Department of Health,Department of Health,03/05/2011,CASH FUNDING Rev Inside RAB,FINANCE & OPERATIONS (DM),NOTTINGHAMSHIRE COUNTY TEACHING PCT,HAFS-10573,75000000,
Department of Health,Department of Health,03/05/2011,CASH FUNDING Rev Inside RAB,FINANCE & OPERATIONS (DM),OLDHAM PCT,HAFS-10574,29000000,
Department of Health,Department of Health,03/05/2011,CASH FUNDING Rev Inside RAB,FINANCE & OPERATIONS (DM),OXFORDSHIRE PCT,HAFS-10575,65000000,
Department of Health,Department of Health,03/05/2011,CASH FUNDING Rev Inside RAB,FINANCE & OPERATIONS (DM),PETERBOROUGH PCT,HAFS-10576,19500000,
Department of Health,Department of Health,03/05/2011,CASH FUNDING Rev Inside RAB,FINANCE & OPERATIONS (DM),PLYMOUTH TEACHING PCT,HAFS-10577,32000000,
Department of Health,Department of Health,03/05/2011,CASH FUNDING Rev Inside RAB,FINANCE & OPERATIONS (DM),PORTSMOUTH CITY TEACHING PCT,HAFS-10578,26000000,
Department of Health,Department of Health,03/05/2011,CASH FUNDING Rev Inside RAB,FINANCE & OPERATIONS (DM),REDBRIDGE PCT,HAFS-10579,30500000,
Department of Health,Department of Health,03/05/2011,CASH FUNDING Rev Inside RAB,FINANCE & OPERATIONS (DM),REDCAR AND CLEVELAND PCT,HAFS-10580,20600000,
Department of Health,Department of Health,03/05/2011,CASH FUNDING Rev Inside RAB,FINANCE & OPERATIONS (DM),RICHMOND AND TWICKENHAM PCT,HAFS-10581,21000000,
Department of Health,Department of Health,03/05/2011,CASH FUNDING Rev Inside RAB,FINANCE & OPERATIONS (DM),ROTHERHAM PCT,HAFS-10582,31500000,
Department of Health,Department of Health,03/05/2011,CASH FUNDING Rev Inside RAB,FINANCE & OPERATIONS (DM),SALFORD PCT,HAFS-10583,31000000,
Department of Health,Department of Health,03/05/2011,CASH FUNDING Rev Inside RAB,FINANCE & OPERATIONS (DM),SANDWELL PCT,HAFS-10584,41200000,
Department of Health,Department of Health,03/05/2011,CASH FUNDING Rev Inside RAB,FINANCE & OPERATIONS (DM),SEFTON PCT,HAFS-10585,39000000,
Department of Health,Department of Health,03/05/2011,CASH FUNDING Rev Inside RAB,FINANCE & OPERATIONS (DM),SHEFFIELD PCT,HAFS-10586,78500000,
Department of Health,Department of Health,03/05/2011,CASH FUNDING Rev Inside RAB,FINANCE & OPERATIONS (DM),SHROPSHIRE COUNTY PCT,HAFS-10587,36291000,
Department of Health,Department of Health,03/05/2011,CASH FUNDING Rev Inside RAB,FINANCE & OPERATIONS (DM),SOLIHULL PCT,HAFS-10588,22000000,
Department of Health,Department of Health,03/05/2011,CASH FUNDING Rev Inside RAB,FINANCE & OPERATIONS (DM),SOMERSET PCT,HAFS-10589,61500000,
Department of Health,Department of Health,03/05/2011,CASH FUNDING Rev Inside RAB,FINANCE & OPERATIONS (DM),SOUTH BIRMINGHAM PCT,HAFS-10590,56500000,
Department of Health,Department of Health,03/05/2011,CASH FUNDING Rev Inside RAB,FINANCE & OPERATIONS (DM),SOUTH CENTRAL SHA,HAFS-10591,33500000,
Department of Health,Department of Health,03/05/2011,CASH FUNDING Rev Inside RAB,FINANCE & OPERATIONS (DM),SOUTH EAST COAST SHA,HAFS-10592,26000000,
Department of Health,Department of Health,03/05/2011,CASH FUNDING Rev Inside RAB,FINANCE & OPERATIONS (DM),SOUTH EAST ESSEX PCT,HAFS-10593,38500000,
Department of Health,Department of Health,03/05/2011,CASH FUNDING Rev Inside RAB,FINANCE & OPERATIONS (DM),SOUTH GLOUCESTERSHIRE PCT,HAFS-10594,31000000,
Department of Health,Department of Health,03/05/2011,CASH FUNDING Rev Inside RAB,FINANCE & OPERATIONS (DM),SOUTH STAFFORDSHIRE PCT,HAFS-10595,66800000,
Department of Health,Department of Health,03/05/2011,CASH FUNDING Rev Inside RAB,FINANCE & OPERATIONS (DM),SOUTH TYNESIDE PCT,HAFS-10596,23400000,
Department of Health,Department of Health,03/05/2011,CASH FUNDING Rev Inside RAB,FINANCE & OPERATIONS (DM),SOUTH WEST ESSEX PCT,HAFS-10597,44000000,
Department of Health,Department of Health,03/05/2011,CASH FUNDING Rev Inside RAB,FINANCE & OPERATIONS (DM),SOUTH WEST SHA,HAFS-10598,32000000,
Department of Health,Department of Health,03/05/2011,CASH FUNDING Rev Inside RAB,FINANCE & OPERATIONS (DM),SOUTHAMPTON CITY PCT,HAFS-10599,33000000,
Department of Health,Department of Health,03/05/2011,CASH FUNDING Rev Inside RAB,FINANCE & OPERATIONS (DM),SOUTHWARK PCT,HAFS-10600,40000000,
Department of Health,Department of Health,03/05/2011,CASH FUNDING Rev Inside RAB,FINANCE & OPERATIONS (DM),STOCKPORT PCT,HAFS-10601,34000000,
Department of Health,Department of Health,03/05/2011,CASH FUNDING Rev Inside RAB,FINANCE & OPERATIONS (DM),STOCKTON-ON-TEES TEACHING PCT,HAFS-10602,23000000,
Department of Health,Department of Health,03/05/2011,CASH FUNDING Rev Inside RAB,FINANCE & OPERATIONS (DM),STOKE ON TRENT PCT,HAFS-10603,36500000,
Department of Health,Department of Health,03/05/2011,CASH FUNDING Rev Inside RAB,FINANCE & OPERATIONS (DM),SUFFOLK PCT,HAFS-10604,62000000,
Department of Health,Department of Health,03/05/2011,CASH FUNDING Rev Inside RAB,FINANCE & OPERATIONS (DM),SUNDERLAND TEACHING PCT,HAFS-10605,45700000,
Department of Health,Department of Health,03/05/2011,CASH FUNDING Rev Inside RAB,FINANCE & OPERATIONS (DM),SURREY PCT,HAFS-10606,117000000,
Department of Health,Department of Health,03/05/2011,CASH FUNDING Rev Inside RAB,FINANCE & OPERATIONS (DM),SUTTON AND MERTON PCT,HAFS-10607,46000000,
Department of Health,Department of Health,03/05/2011,CASH FUNDING Rev Inside RAB,FINANCE & OPERATIONS (DM),SWINDON PCT,HAFS-10608,17000000,
Department of Health,Department of Health,03/05/2011,CASH FUNDING Rev Inside RAB,FINANCE & OPERATIONS (DM),TAMESIDE AND GLOSSOP PCT,HAFS-10609,30000000,
Department of Health,Department of Health,03/05/2011,CASH FUNDING Rev Inside RAB,FINANCE & OPERATIONS (DM),TELFORD & WREKIN PCT,HAFS-10610,22200000,
Department of Health,Department of Health,03/05/2011,CASH FUNDING Rev Inside RAB,FINANCE & OPERATIONS (DM),TORBAY CARE TRUST,HAFS-10611,21000000,
Department of Health,Department of Health,03/05/2011,CASH FUNDING Rev Inside RAB,FINANCE & OPERATIONS (DM),TOWER HAMLETS PCT,HAFS-10612,37000000,
Department of Health,Department of Health,03/05/2011,CASH FUNDING Rev Inside RAB,FINANCE & OPERATIONS (DM),TRAFFORD PCT,HAFS-10613,25000000,
Department of Health,Department of Health,03/05/2011,CASH FUNDING Rev Inside RAB,FINANCE & OPERATIONS (DM),WAKEFIELD DISTRICT PCT,HAFS-10614,43000000,
Department of Health,Department of Health,03/05/2011,CASH FUNDING Rev Inside RAB,FINANCE & OPERATIONS (DM),WALSALL TEACHING PCT,HAFS-10615,43000000,
Department of Health,Department of Health,03/05/2011,CASH FUNDING Rev Inside RAB,FINANCE & OPERATIONS (DM),WALTHAM FOREST PCT,HAFS-10616,36000000,
Department of Health,Department of Health,03/05/2011,CASH FUNDING Rev Inside RAB,FINANCE & OPERATIONS (DM),WANDSWORTH TEACHING PCT,HAFS-10617,42000000,
Department of Health,Department of Health,03/05/2011,CASH FUNDING Rev Inside RAB,FINANCE & OPERATIONS (DM),WARRINGTON PCT,HAFS-10618,20300000,
Department of Health,Department of Health,03/05/2011,CASH FUNDING Rev Inside RAB,FINANCE & OPERATIONS (DM),WARWICKSHIRE PCT,HAFS-10619,65000000,
Department of Health,Department of Health,03/05/2011,CASH FUNDING Rev Inside RAB,FINANCE & OPERATIONS (DM),WEST ESSEX PCT,HAFS-10620,35000000,
Department of Health,Department of Health,03/05/2011,CASH FUNDING Rev Inside RAB,FINANCE & OPERATIONS (DM),WEST KENT PCT,HAFS-10621,74000000,
Department of Health,Department of Health,03/05/2011,CASH FUNDING Rev Inside RAB,FINANCE & OPERATIONS (DM),WEST MIDLANDS SHA,HAFS-10622,41250000,
Department of Health,Department of Health,03/05/2011,CASH FUNDING Rev Inside RAB,FINANCE & OPERATIONS (DM),WEST SUSSEX PCT,HAFS-10623,95500000,
Department of Health,Department of Health,03/05/2011,CASH FUNDING Rev Inside RAB,FINANCE & OPERATIONS (DM),WESTERN CHESHIRE PCT,HAFS-10624,27500000,
Department of Health,Department of Health,03/05/2011,CASH FUNDING Rev Inside RAB,FINANCE & OPERATIONS (DM),WESTMINSTER PCT,HAFS-10625,40000000,
Department of Health,Department of Health,03/05/2011,CASH FUNDING Rev Inside RAB,FINANCE & OPERATIONS (DM),WILTSHIRE PCT,HAFS-10626,48000000,
Department of Health,Department of Health,03/05/2011,CASH FUNDING Rev Inside RAB,FINANCE & OPERATIONS (DM),WIRRAL PCT,HAFS-10627,46940000,
Department of Health,Department of Health,03/05/2011,CASH FUNDING Rev Inside RAB,FINANCE & OPERATIONS (DM),WOLVERHAMPTON CITY PCT,HAFS-10628,33000000,
Department of Health,Department of Health,03/05/2011,CASH FUNDING Rev Inside RAB,FINANCE & OPERATIONS (DM),WORCESTERSHIRE PCT,HAFS-10629,62000000,
Department of Health,Department of Health,03/05/2011,CASH FUNDING Rev Inside RAB,FINANCE & OPERATIONS (DM),YORKSHIRE & THE HUMBER SHA,HAFS-10630,40000000,
Department of Health,Department of Health,03/05/2011,CASH FUNDING Rev Inside RAB,FINANCE & OPERATIONS (DM),"ASHTON, LEIGH & WIGAN PCT",HAFS-10631,42000000,
Department of Health,Department of Health,03/05/2011,CASH FUNDING Rev Inside RAB,FINANCE & OPERATIONS (DM),BARKING AND DAGENHAM PCT,HAFS-10632,35000000,
Department of Health,Department of Health,03/05/2011,CASH FUNDING Rev Inside RAB,FINANCE & OPERATIONS (DM),BARNET PCT,HAFS-10633,45000000,
Department of Health,Department of Health,03/05/2011,CASH FUNDING Rev Inside RAB,FINANCE & OPERATIONS (DM),BARNSLEY PCT,HAFS-10634,50000000,
Department of Health,Department of Health,03/05/2011,CASH FUNDING Rev Inside RAB,FINANCE & OPERATIONS (DM),BASSETLAW PCT,HAFS-10635,13500000,
Department of Health,Department of Health,03/05/2011,CASH FUNDING Rev Inside RAB,FINANCE & OPERATIONS (DM),BATH & NORTH EAST SOMERSET PCT,HAFS-10636,20000000,
Department of Health,Department of Health,03/05/2011,CASH FUNDING Rev Inside RAB,FINANCE & OPERATIONS (DM),BEDFORDSHIRE PCT,HAFS-10637,43000000,
Department of Health,Department of Health,03/05/2011,CASH FUNDING Rev Inside RAB,FINANCE & OPERATIONS (DM),BERKSHIRE EAST PCT,HAFS-10638,43500000,
Department of Health,Department of Health,03/05/2011,CASH FUNDING Rev Inside RAB,FINANCE & OPERATIONS (DM),BERKSHIRE WEST PCT,HAFS-10639,37500000,
Department of Health,Department of Health,03/05/2011,CASH FUNDING Rev Inside RAB,FINANCE & OPERATIONS (DM),BEXLEY CARE TRUST,HAFS-10640,27500000,
Department of Health,Department of Health,03/05/2011,CASH FUNDING Rev Inside RAB,FINANCE & OPERATIONS (DM),BIRMINGHAM EAST AND NORTH PCT,HAFS-10641,55000000,
Department of Health,Department of Health,03/05/2011,CASH FUNDING Rev Inside RAB,FINANCE & OPERATIONS (DM),BLACKBURN AND DARWEN TEACHING CARE TRUST PLUS,HAFS-10642,22245000,
Department of Health,Department of Health,03/05/2011,CASH FUNDING Rev Inside RAB,FINANCE & OPERATIONS (DM),BLACKPOOL PCT,HAFS-10643,17106000,
Department of Health,Department of Health,03/05/2011,CASH FUNDING Rev Inside RAB,FINANCE & OPERATIONS (DM),BOLTON PCT,HAFS-10644,31000000,
Department of Health,Department of Health,03/05/2011,CASH FUNDING Rev Inside RAB,FINANCE & OPERATIONS (DM),BOURNEMOUTH & POOLE PCT,HAFS-10645,39000000,
Department of Health,Department of Health,03/05/2011,CASH FUNDING Rev Inside RAB,FINANCE & OPERATIONS (DM),BRADFORD AND AIREDALE PCT,HAFS-10646,54000000,
Department of Health,Department of Health,03/05/2011,CASH FUNDING Rev Inside RAB,FINANCE & OPERATIONS (DM),BRENT TEACHING PCT,HAFS-10647,39000000,
Department of Health,Department of Health,03/05/2011,CASH FUNDING Rev Inside RAB,FINANCE & OPERATIONS (DM),BRIGHTON & HOVE CITY TEACHING PCT,HAFS-10648,36500000,
Department of Health,Department of Health,03/05/2011,CASH FUNDING Rev Inside RAB,FINANCE & OPERATIONS (DM),BRISTOL PCT,HAFS-10649,60000000,
Department of Health,Department of Health,03/05/2011,CASH FUNDING Rev Inside RAB,FINANCE & OPERATIONS (DM),BROMLEY PCT,HAFS-10650,27750000,
Department of Health,Department of Health,03/05/2011,CASH FUNDING Rev Inside RAB,FINANCE & OPERATIONS (DM),BUCKINGHAMSHIRE PCT,HAFS-10651,55000000,
Department of Health,Department of Health,03/05/2011,CASH FUNDING Rev Inside RAB,FINANCE & OPERATIONS (DM),BURY PCT,HAFS-10652,21000000,
Department of Health,Department of Health,03/05/2011,CASH FUNDING Rev Inside RAB,FINANCE & OPERATIONS (DM),CALDERDALE PCT,HAFS-10653,24000000,
Department of Health,Department of Health,03/05/2011,CASH FUNDING Rev Inside RAB,FINANCE & OPERATIONS (DM),CAMBRIDGESHIRE PCT,HAFS-10654,62500000,
Department of Health,Department of Health,03/05/2011,CASH FUNDING Rev Inside RAB,FINANCE & OPERATIONS (DM),CAMDEN PCT,HAFS-10655,40000000,
Department of Health,Department of Health,03/05/2011,CASH FUNDING Rev Inside RAB,FINANCE & OPERATIONS (DM),CENTRAL & EASTERN CHESHIRE PCT,HAFS-10656,50000000,
Department of Health,Department of Health,03/05/2011,CASH FUNDING Rev Inside RAB,FINANCE & OPERATIONS (DM),CENTRAL LANCASHIRE PCT,HAFS-10657,51000000,
Department of Health,Department of Health,03/05/2011,CASH FUNDING Rev Inside RAB,FINANCE & OPERATIONS (DM),CITY AND HACKNEY TEACHING PCT,HAFS-10658,40000000,
Department of Health,Department of Health,03/05/2011,CASH FUNDING Rev Inside RAB,FINANCE & OPERATIONS (DM),CORNWALL & ISLES OF SCILLY PCT,HAFS-10659,69500000,
Department of Health,Department of Health,03/05/2011,CASH FUNDING Rev Inside RAB,FINANCE & OPERATIONS (DM),COUNTY DURHAM PCT,HAFS-10660,56234000,
Department of Health,Department of Health,03/05/2011,CASH FUNDING Rev Inside RAB,FINANCE & OPERATIONS (DM),COVENTRY TEACHING PCT,HAFS-10661,37000000,
Department of Health,Department of Health,03/05/2011,CASH FUNDING Rev Inside RAB,FINANCE & OPERATIONS (DM),CROYDON PCT,HAFS-10662,40000000,
Department of Health,Department of Health,03/05/2011,CASH FUNDING Rev Inside RAB,FINANCE & OPERATIONS (DM),CUMBRIA PCT,HAFS-10663,58000000,
Department of Health,Department of Health,03/05/2011,CASH FUNDING Rev Inside RAB,FINANCE & OPERATIONS (DM),DARLINGTON PCT,HAFS-10664,17622000,
Department of Health,Department of Health,03/05/2011,CASH FUNDING Rev Inside RAB,FINANCE & OPERATIONS (DM),DERBY CITY PCT,HAFS-10665,35000000,
Department of Health,Department of Health,03/05/2011,CASH FUNDING Rev Inside RAB,FINANCE & OPERATIONS (DM),DERBYSHIRE COUNTY PCT,HAFS-10666,84000000,
Department of Health,Department of Health,03/05/2011,CASH FUNDING Rev Inside RAB,FINANCE & OPERATIONS (DM),DEVON PCT,HAFS-10667,91000000,
Department of Health,Department of Health,03/05/2011,CASH FUNDING Rev Inside RAB,FINANCE & OPERATIONS (DM),DONCASTER PCT,HAFS-10668,45000000,
Department of Health,Department of Health,03/05/2011,CASH FUNDING Rev Inside RAB,FINANCE & OPERATIONS (DM),DORSET PCT,HAFS-10669,50000000,
Department of Health,Department of Health,03/05/2011,CASH FUNDING Rev Inside RAB,FINANCE & OPERATIONS (DM),DUDLEY PCT,HAFS-10670,37000000,
Department of Health,Department of Health,03/05/2011,CASH FUNDING Rev Inside RAB,FINANCE & OPERATIONS (DM),EALING PCT,HAFS-10671,45000000,
Department of Health,Department of Health,03/05/2011,CASH FUNDING Rev Inside RAB,FINANCE & OPERATIONS (DM),EAST LANCASHIRE PCT,HAFS-10672,52000000,
Department of Health,Department of Health,03/05/2011,CASH FUNDING Rev Inside RAB,FINANCE & OPERATIONS (DM),EAST MIDLANDS SHA,HAFS-10673,30000000,
Department of Health,Department of Health,03/05/2011,CASH FUNDING Rev Inside RAB,FINANCE & OPERATIONS (DM),EAST OF ENGLAND SHA,HAFS-10674,45000000,
Department of Health,Department of Health,03/05/2011,CASH FUNDING Rev Inside RAB,FINANCE & OPERATIONS (DM),EAST RIDING OF YORKSHIRE PCT,HAFS-10675,31000000,
Department of Health,Department of Health,03/05/2011,CASH FUNDING Rev Inside RAB,FINANCE & OPERATIONS (DM),EAST SUSSEX DOWNS & WEALD PCT,HAFS-10676,40000000,
Department of Health,Department of Health,03/05/2011,CASH FUNDING Rev Inside RAB,FINANCE & OPERATIONS (DM),EASTERN & COASTAL KENT PCT,HAFS-10677,95000000,
Department of Health,Department of Health,03/05/2011,CASH FUNDING Rev Inside RAB,FINANCE & OPERATIONS (DM),ENFIELD PCT,HAFS-10678,35000000,
Department of Health,Department of Health,03/05/2011,CASH FUNDING Rev Inside RAB,FINANCE & OPERATIONS (DM),GATESHEAD PCT,HAFS-10679,29100000,
Department of Health,Department of Health,03/05/2011,CASH FUNDING Rev Inside RAB,FINANCE & OPERATIONS (DM),GLOUCESTERSHIRE PCT,HAFS-10680,53000000,
Department of Health,Department of Health,03/05/2011,CASH FUNDING Rev Inside RAB,FINANCE & OPERATIONS (DM),GREAT YARMOUTH AND WAVENY PCT,HAFS-10681,26550000,
Department of Health,Department of Health,03/05/2011,CASH FUNDING Rev Inside RAB,FINANCE & OPERATIONS (DM),GREENWICH TEACHING PCT,HAFS-10682,35000000,
Department of Health,Department of Health,03/05/2011,CASH FUNDING Rev Inside RAB,FINANCE & OPERATIONS (DM),HALTON & ST HELENS PCT,HAFS-10683,75000000,
Department of Health,Department of Health,03/05/2011,CASH FUNDING Rev Inside RAB,FINANCE & OPERATIONS (DM),HAMMERSMITH AND FULHAM PCT,HAFS-10684,41000000,
Department of Health,Department of Health,03/05/2011,CASH FUNDING Rev Inside RAB,FINANCE & OPERATIONS (DM),HAMPSHIRE PCT,HAFS-10685,116500000,
Department of Health,Department of Health,03/05/2011,CASH FUNDING Rev Inside RAB,FINANCE & OPERATIONS (DM),HARINGEY TEACHING PCT,HAFS-10686,40000000,
Department of Health,Department of Health,03/05/2011,CASH FUNDING Rev Inside RAB,FINANCE & OPERATIONS (DM),HARROW PCT,HAFS-10687,26000000,
Department of Health,Department of Health,03/05/2011,CASH FUNDING Rev Inside RAB,FINANCE & OPERATIONS (DM),HARTLEPOOL PCT,HAFS-10688,13700000,
Department of Health,Department of Health,03/05/2011,CASH FUNDING Rev Inside RAB,FINANCE & OPERATIONS (DM),HASTINGS & ROTHER PCT,HAFS-10689,25000000,
Department of Health,Department of Health,03/05/2011,CASH FUNDING Rev Inside RAB,FINANCE & OPERATIONS (DM),HAVERING PCT COMMISSIONING,HAFS-10690,32000000,
Department of Health,Department of Health,03/05/2011,CASH FUNDING Rev Inside RAB,FINANCE & OPERATIONS (DM),HEALTH AND SOCIAL CARE INFORMATION CENTRE,HAFS-10691,2500000,
Department of Health,Department of Health,03/05/2011,CASH FUNDING Rev Inside RAB,FINANCE & OPERATIONS (DM),HEART OF BIRMINGHAM TEACHING PCT,HAFS-10692,43000000,
Department of Health,Department of Health,03/05/2011,CASH FUNDING Rev Inside RAB,FINANCE & OPERATIONS (DM),HEREFORDSHIRE PCT,HAFS-10693,21000000,
Department of Health,Department of Health,03/05/2011,CASH FUNDING Rev Inside RAB,FINANCE & OPERATIONS (DM),HERTFORDSHIRE PCT,HAFS-10694,119000000,
Department of Health,Department of Health,03/05/2011,CASH FUNDING Rev Inside RAB,FINANCE & OPERATIONS (DM),HEYWOOD MIDDLETON & ROCHDALE PCT,HAFS-10695,25000000,
Department of Health,Department of Health,03/05/2011,CASH FUNDING Rev Inside RAB,FINANCE & OPERATIONS (DM),HILLINGDON PCT,HAFS-10696,31800000,
Department of Health,Department of Health,03/05/2011,CASH FUNDING Rev Inside RAB,FINANCE & OPERATIONS (DM),HOUNSLOW PCT,HAFS-10697,30000000,
Department of Health,Department of Health,03/05/2011,CASH FUNDING Rev Inside RAB,FINANCE & OPERATIONS (DM),HULL PCT,HAFS-10698,34500000,
Department of Health,Department of Health,03/05/2011,CASH FUNDING Rev Inside RAB,FINANCE & OPERATIONS (DM),ISLE OF WIGHT NHS PCT,HAFS-10699,19000000,
Department of Health,Department of Health,03/05/2011,CASH FUNDING Rev Inside RAB,FINANCE & OPERATIONS (DM),ISLINGTON PCT,HAFS-10700,32000000,
Department of Health,Department of Health,03/05/2011,CASH FUNDING Rev Inside RAB,FINANCE & OPERATIONS (DM),KENSINGTON AND CHELSEA PCT,HAFS-10701,28000000,
Department of Health,Department of Health,03/05/2011,CASH FUNDING Rev Inside RAB,FINANCE & OPERATIONS (DM),KINGSTON PCT,HAFS-10702,21000000,
Department of Health,Department of Health,20/05/2011,CASH FUNDING Rev Inside RAB,FINANCE & OPERATIONS (DM),EAST RIDING OF YORKSHIRE PCT,HAFS-10707,4000000,
Department of Health,Department of Health,03/05/2011,CASH FUNDING Rev ND In RAB,FINANCE & OPERATIONS (DM),NHS BUSINESS SERVICES AUTHORITY (NHSBSA),HAFS-10556,169100000,
Department of Health,Department of Health,09/05/2011,Additions FT Financing Facility Loans,FINANCE & OPERATIONS (DM),BIRMINGHAM AND SOLIHULL MENTAL HEALTH NHS FOUNDATION TRUST,HAFS-10705,3798000,
Department of Health,Department of Health,27/05/2011,Additions FT Financing Facility Loans,FINANCE & OPERATIONS (DM),ROYAL BOLTON HOSPITAL NHS FOUNDATION TRUST,HAFS-10873,229000,
Department of Health,Department of Health,16/05/2011,Additions FT Financing Facility Loans,FINANCE & OPERATIONS (DM),ROYAL BOLTON HOSPITAL NHS FOUNDATION TRUST,HAFS-10706,2781000,
Department of Health,Department of Health,27/05/2011,Additions FT Financing Facility Loans,FINANCE & OPERATIONS (DM),YORK TEACHING HOSPITAL NHS FOUNDATION TRUST,HAFS-10874,205000,
Department of Health,Department of Health,09/05/2011,Additions-PDC temporary,FINANCE & OPERATIONS (DM),BRIGHTON & SUSSEX UNIVERSITY HOSPITALS NHS TRUST,HAFS-10704,8000000,
